Body,Body Name,Date,TransNo,Amount � (Excl VAT),Supplier name,Description,Expense Area,Expense Type,Expense Code,
http://opendatacommunities.org/id/london-borough-council/sutton,London Borough of Sutton,23/10/2021,10004539,15.05, FACEBK 3NVXJ8FAL2,SPLIT - NOT ALONE IN SUTTON (27.03%),Peoples Services,Publicity,A44266,
http://opendatacommunities.org/id/london-borough-council/sutton,London Borough of Sutton,23/10/2021,10004539,102.08, GOOGLE  ADS8517410550,NOT ALONE IN SUTTON ADS,Peoples Services,Publicity,A44266,
http://opendatacommunities.org/id/london-borough-council/sutton,London Borough of Sutton,26/10/2021,10004539,48.62, FACEBK 3PVGY9KAL2,SPLIT - ADS - NOT ALONE IN SUTTON (24.31%),Peoples Services,Publicity,A44266,
http://opendatacommunities.org/id/london-borough-council/sutton,London Borough of Sutton,21/10/2021,10004539,94.78, FACEBK GMNW4A3BL2,SPLIT - ADS - NOT ALONE IN SUTTON (47.39%),Health and Wellbeing,Publicity,A44266,
http://opendatacommunities.org/id/london-borough-council/sutton,London Borough of Sutton,12/10/2021,10004539,20.72, AMZNMKTPLACE AMAZON.CO,TOYS AND EQUIPMENT,Health and Wellbeing,Equipment And Materials Purchase,A40000,
http://opendatacommunities.org/id/london-borough-council/sutton,London Borough of Sutton,11/10/2021,10004539,7.21, AMZNMKTPLACE AMAZON.CO,TOYS & EQUIPMENT,Health and Wellbeing,Equipment And Materials Purchase,A40000,
http://opendatacommunities.org/id/london-borough-council/sutton,London Borough of Sutton,20/10/2021,10004539,119.08, AMZNMKTPLACE,TOYS & EQUIPMENT,Health and Wellbeing,Equipment And Materials Purchase,A40000,
http://opendatacommunities.org/id/london-borough-council/sutton,London Borough of Sutton,16/10/2021,10004539,9.33, POUNDLAND LTD,TOYS AND EQUIPMENT,Health and Wellbeing,Equipment And Materials Purchase,A40000,
http://opendatacommunities.org/id/london-borough-council/sutton,London Borough of Sutton,07/10/2021,10004539,5.37, B&M 568 - CRAWLEY,TOYS AND EQUIPMENT,Health and Wellbeing,Equipment And Materials Purchase,A40000,
http://opendatacommunities.org/id/london-borough-council/sutton,London Borough of Sutton,23/10/2021,10004539,8.32, TWINKL LIMITED,TWINKL SUBSCRIPTION,Health and Wellbeing,Equipment And Materials Purchase,A40000,
http://opendatacommunities.org/id/london-borough-council/sutton,London Borough of Sutton,04/10/2021,10004539,98.29, AMZNMKTPLACE,TOYS AND EQUIPMENT,Health and Wellbeing,Equipment And Materials Purchase,A40000,
http://opendatacommunities.org/id/london-borough-council/sutton,London Borough of Sutton,04/10/2021,10004539,109.08, W M MORRISONS.COM,GROCERIES,Health and Wellbeing,Provisions,A41006,
http://opendatacommunities.org/id/london-borough-council/sutton,London Borough of Sutton,04/10/2021,10004539,30.84, TESCO STORE 3235,GROCERIES,Health and Wellbeing,Provisions,A41006,
http://opendatacommunities.org/id/london-borough-council/sutton,London Borough of Sutton,27/09/2021,10004539,22.83, LIDL UK,GROCERIES,Health and Wellbeing,Provisions,A41006,
http://opendatacommunities.org/id/london-borough-council/sutton,London Borough of Sutton,11/10/2021,10004539,28.23, WM MORRISONS STORE,GROCERIES,Health and Wellbeing,Provisions,A41006,
http://opendatacommunities.org/id/london-borough-council/sutton,London Borough of Sutton,09/10/2021,10004539,-20.00, W M MORRISONS.COM,GROCERIES,Health and Wellbeing,Provisions,A41006,
http://opendatacommunities.org/id/london-borough-council/sutton,London Borough of Sutton,19/10/2021,10004539,3.32, AMZNMKTPLACE AMAZON.CO,GROCERIES,Health and Wellbeing,Provisions,A41006,
http://opendatacommunities.org/id/london-borough-council/sutton,London Borough of Sutton,19/10/2021,10004539,63.20, W M MORRISONS.COM,GROCERIES,Health and Wellbeing,Provisions,A41006,
http://opendatacommunities.org/id/london-borough-council/sutton,London Borough of Sutton,29/09/2021,10004539,104.17, NUMBER ONE CAR AND VAN,VAN HIRE (REFUND),Health and Wellbeing,Vehicles - Expenses Other,A30017,
http://opendatacommunities.org/id/london-borough-council/sutton,London Borough of Sutton,29/09/2021,10004539,-104.17, NUMBER ONE CAR AND VAN,VAN HIRE (CANCELLED),Health and Wellbeing,Vehicles - Expenses Other,A30017,
http://opendatacommunities.org/id/london-borough-council/sutton,London Borough of Sutton,20/10/2021,10004539,3.91, FACEBK  A77BL6KK72,SOCIAL MEDIA ADVERTISING,Health and Wellbeing,Publicity Materials,A43070,
http://opendatacommunities.org/id/london-borough-council/sutton,London Borough of Sutton,21/10/2021,10004539,89.57, FACEBK GMNW4A3BL2,SPLIT - ADS - COVID 12-15 (44.79%),Health and Wellbeing,Provider Contract Payments,A44290,
http://opendatacommunities.org/id/london-borough-council/sutton,London Borough of Sutton,23/10/2021,10004539,21.06, FACEBK 3NVXJ8FAL2,SPLIT - COVID (37.82%),Health and Wellbeing,Provider Contract Payments,A44290,
http://opendatacommunities.org/id/london-borough-council/sutton,London Borough of Sutton,27/09/2021,10004539,7.80, CLOCKTOWER CARS,COURIER: COMM HEALTH EVENT: 25 SEPT,Health and Wellbeing,Provider Contract Payments,A44290,
http://opendatacommunities.org/id/london-borough-council/sutton,London Borough of Sutton,26/10/2021,10004539,87.19, FACEBK 3PVGY9KAL2,SPLIT - ADS - COVID 12-15 (43.6%),Health and Wellbeing,Provider Contract Payments,A44290,
http://opendatacommunities.org/id/london-borough-council/sutton,London Borough of Sutton,07/10/2021,10004539,9.59, CLOCKTOWER CARS,COURIER: COMM HEALTH ADVICE EVENT 7 OCT,Health and Wellbeing,Provider Contract Payments,A44290,
http://opendatacommunities.org/id/london-borough-council/sutton,London Borough of Sutton,22/10/2021,10004539,"3,199.00", C2E796600538G UKVI,VISA SPONSORSHIP COSTS,Resources,Subscriptions,A47010,
http://opendatacommunities.org/id/london-borough-council/sutton,London Borough of Sutton,03/10/2021,10004539,8.32, SPOTIFY P1748876CB,MUSIC FOR WEDDINGS,Resources,Subscriptions,A47010,
http://opendatacommunities.org/id/london-borough-council/sutton,London Borough of Sutton,19/10/2021,10004539,7.08, FLITTONS NURSERY &,FLOWER BASKETS FOR THE REGISTER OFFICE,Resources,Miscellaneous Expenses,A49000,
http://opendatacommunities.org/id/london-borough-council/sutton,London Borough of Sutton,19/10/2021,10004539,8.12, BARNES NURSERIES,PLANTS FOR FLOWER BOXES FOR THE RO,Resources,Miscellaneous Expenses,A49000,
http://opendatacommunities.org/id/london-borough-council/sutton,London Borough of Sutton,19/10/2021,10004539,3.04, WILKO RETAIL LIMITED,FACIAL TISSUES FOR THE RO,Resources,Miscellaneous Expenses,A49000,
http://opendatacommunities.org/id/london-borough-council/sutton,London Borough of Sutton,19/10/2021,10004539,58.33, CROSSWAYS NURSERY,PLANTS FOR FLOWER BOXES FOR THE RO,Resources,Miscellaneous Expenses,A49000,
http://opendatacommunities.org/id/london-borough-council/sutton,London Borough of Sutton,19/10/2021,10004539,26.63, DGC WOODCOTE GREEN,PLANTS FOR FLOWER BOXES FOR THE REGISTER OFFICE (RO),Resources,Miscellaneous Expenses,A49000,
http://opendatacommunities.org/id/london-borough-council/sutton,London Borough of Sutton,22/10/2021,10004539,30.05, MARKS&SPENCER PLC SACA,TRAINING EVENT,Resources,Hospitality,A46020,
http://opendatacommunities.org/id/london-borough-council/sutton,London Borough of Sutton,15/10/2021,10004539,8.27, MAILCHIMP    MONTHLY,WEB HOSTING,Resources,IT Software Purchase,A45040,
http://opendatacommunities.org/id/london-borough-council/sutton,London Borough of Sutton,14/10/2021,10004539,300.55, MAILCHIMP    MONTHLY,WEB HOSTING,Resources,IT Software Purchase,A45040,
http://opendatacommunities.org/id/london-borough-council/sutton,London Borough of Sutton,24/10/2021,10004539,83.34, LUCIDCHART.COM/CHARGE,COMMITTEE SERVICES LUCID CHART SUBSCRIPTION RENEWAL,Resources,Registration & Licence Fees Payable,A44267,
http://opendatacommunities.org/id/london-borough-council/sutton,London Borough of Sutton,25/10/2021,10004539,2.29, LUCIDCHART.COM/CHARGE,COMMITTEE SERVICES - LUCID CHART SUBSCRIPTION RENEWAL FOREIGN EXCHANGE FEE,Resources,Registration & Licence Fees Payable,A44267,
http://opendatacommunities.org/id/london-borough-council/sutton,London Borough of Sutton,13/10/2021,10004539,9.02, AMAZON.CO.UK 5K5FN4KJ5,"SPLIT - EPOCH-MAKING KEYBOARD WRIST REST MOUSE MAT SET, ERGONOMIC MEMORY FOAM KEYBOARD GEL WRIST SUPPORT MOUSE MAT WITH RUBBER BASE NON SLIP FOR COMPUTER LAPT (72.23%)",Resources,Equipment And Materials Purchase,A40000,
http://opendatacommunities.org/id/london-borough-council/sutton,London Borough of Sutton,13/10/2021,10004539,3.46, AMAZON.CO.UK 5K5FN4KJ5,BALANCING ENTRY AMOUNT (27.77%),Resources,Equipment And Materials Purchase,A40000,
http://opendatacommunities.org/id/london-borough-council/sutton,London Borough of Sutton,07/10/2021,10004539,8.24, AMZNMKTPLACE,"SPLIT - KENSINGTON VALUKEYBOARD - WIRED KEYBOARD FOR PC, LAPTOP, DESKTOP PC, COMPUTER, NOTEBOOK. USB KEYBOARD COMPATIBLE WITH DELL, ACER, HP, SAMSUNG AND MORE (79.89%)",Resources,Equipment And Materials Purchase,A40000,
http://opendatacommunities.org/id/london-borough-council/sutton,London Borough of Sutton,07/10/2021,10004539,2.07, AMZNMKTPLACE,BALANCING ENTRY AMOUNT (20.11%),Resources,Equipment And Materials Purchase,A40000,
http://opendatacommunities.org/id/london-borough-council/sutton,London Borough of Sutton,20/10/2021,10004539,0.14, PORTANT.CO,SUBSCRIPTION FOR GOOGLE ADDON PORTANT - OCTOBER FEE,Resources,IT Software Purchase,A45040,
http://opendatacommunities.org/id/london-borough-council/sutton,London Borough of Sutton,19/10/2021,10004539,5.11, PORTANT.CO,SUBSCRIPTION FOR GOOGLE ADDON PORTANT - OCTOBER,Resources,IT Software Purchase,A45040,
http://opendatacommunities.org/id/london-borough-council/sutton,London Borough of Sutton,02/10/2021,10004539,15.55, PAYPAL  ADDONS,SUBSCRIPTION FOR GOOGLE ADDON AUTOCRAT,Resources,IT Software Purchase,A45040,
http://opendatacommunities.org/id/london-borough-council/sutton,London Borough of Sutton,01/10/2021,10004539,31.14, PAYPAL  ADDONS,2 X SUBSCRIPTION FOR GOOGLE ADDON PORTANT,Resources,IT Software Purchase,A45040,
http://opendatacommunities.org/id/london-borough-council/sutton,London Borough of Sutton,21/10/2021,10004539,21.00, WWW.DIRECT-FUNDRAISING,SECURITY CHAINS FOR MAYOR'S CHARITY COUNTER BUCKETS,Resources,Equipment And Materials Purchase,A40000,
http://opendatacommunities.org/id/london-borough-council/sutton,London Borough of Sutton,13/10/2021,10004539,140.00, WWW.DIRECT-FUNDRAISING,MAYOR'S CHARITY COUNTER BUCKETS,Resources,Equipment And Materials Purchase,A40000,
http://opendatacommunities.org/id/london-borough-council/sutton,London Borough of Sutton,13/10/2021,10004539,37.14, AMZNMKTPLACE,MICROPHONE AND CABLE FOR COMMS AND ENGAGEMENT TEAM,Resources,Equipment And Materials Purchase,A40000,
http://opendatacommunities.org/id/london-borough-council/sutton,London Borough of Sutton,26/10/2021,10004539,64.19, FACEBK 3PVGY9KAL2,SPLIT - ADS - STRONGER SUTTON (32.1%),Resources,Surveys,A44136,
http://opendatacommunities.org/id/london-borough-council/sutton,London Borough of Sutton,25/10/2021,10004539,257.33, SPOTIFY,STRONGER SUTTON CONVERSATION,Resources,Surveys,A44136,
http://opendatacommunities.org/id/london-borough-council/sutton,London Borough of Sutton,01/10/2021,10004539,29.87, SPOTIFY,STRONGER SUTTON CONVERSATION ADS,Resources,Surveys,A44136,
http://opendatacommunities.org/id/london-borough-council/sutton,London Borough of Sutton,01/10/2021,10004539,477.05, GOOGLE  ADS8517410550,STRONGER SUTTON CONVERSATION ADS,Resources,Surveys,A44136,
http://opendatacommunities.org/id/london-borough-council/sutton,London Borough of Sutton,21/10/2021,10004539,15.65, FACEBK GMNW4A3BL2,SPLIT - ADS - STRONGER SUTTON (7.83%),Resources,Surveys,A44136,
http://opendatacommunities.org/id/london-borough-council/sutton,London Borough of Sutton,17/10/2021,10004539,20.35, FACEBK F395E87FR2,STRONGER SUTTON CONVERSATION ADS,Resources,Surveys,A44136,
http://opendatacommunities.org/id/london-borough-council/sutton,London Borough of Sutton,23/10/2021,10004539,19.57, FACEBK 3NVXJ8FAL2,SPLIT - STRONGER SUTTON CONVERSATION (35.15%),Resources,Surveys,A44136,
http://opendatacommunities.org/id/london-borough-council/sutton,London Borough of Sutton,01/10/2021,10004539,19.84, LINKEDIN IRELAND,STRONGER SUTTON CONVERSATION ADS,Resources,Surveys,A44136,
http://opendatacommunities.org/id/london-borough-council/sutton,London Borough of Sutton,30/09/2021,10004539,85.31, LINKEDIN IRELAND,STRONGER SUTTON ADS,Resources,Surveys,A44136,
http://opendatacommunities.org/id/london-borough-council/sutton,London Borough of Sutton,28/09/2021,10004539,255.77, SPOTIFY,STRONGER SUTTON CONVERSATION ADS,Resources,Surveys,A44136,
http://opendatacommunities.org/id/london-borough-council/sutton,London Borough of Sutton,13/10/2021,10004539,0.32, MAILCHIMP,MAILCHIMP SUBSCRIPTION,Resources,Communication Support,H10018,
http://opendatacommunities.org/id/london-borough-council/sutton,London Borough of Sutton,12/10/2021,10004539,11.63, CLIPCHAMP.COM,VIDEO EDITING SUBSCRIPTION,Resources,Communication Support,H10018,
http://opendatacommunities.org/id/london-borough-council/sutton,London Borough of Sutton,21/10/2021,10004539,197.99, MAILCHIMP,MAILCHIMP SUBSCRIPTION,Resources,Communication Support,H10018,
http://opendatacommunities.org/id/london-borough-council/sutton,London Borough of Sutton,19/10/2021,10004539,319.00, CURRYS ONLINE,CL&G,Resources,"Grants, Contributions & Donations",A47005,
http://opendatacommunities.org/id/london-borough-council/sutton,London Borough of Sutton,19/10/2021,10004539,-876.93, ARGOS LTD,CL&G,Resources,"Grants, Contributions & Donations",A47005,
http://opendatacommunities.org/id/london-borough-council/sutton,London Borough of Sutton,12/10/2021,10004539,291.05, ARGOS LTD,CL&G,Resources,"Grants, Contributions & Donations",A47005,
http://opendatacommunities.org/id/london-borough-council/sutton,London Borough of Sutton,18/10/2021,10004539,528.99, CURRYS ONLINE,CL&G,Resources,"Grants, Contributions & Donations",A47005,
http://opendatacommunities.org/id/london-borough-council/sutton,London Borough of Sutton,18/10/2021,10004539,333.95, ARGOS LTD,CL&G,Resources,"Grants, Contributions & Donations",A47005,
http://opendatacommunities.org/id/london-borough-council/sutton,London Borough of Sutton,18/10/2021,10004539,299.00, CURRYS ONLINE,CL&G,Resources,"Grants, Contributions & Donations",A47005,
http://opendatacommunities.org/id/london-borough-council/sutton,London Borough of Sutton,18/10/2021,10004539,274.00, CURRYS ONLINE,CL&G,Resources,"Grants, Contributions & Donations",A47005,
http://opendatacommunities.org/id/london-borough-council/sutton,London Borough of Sutton,18/10/2021,10004539,-264.99, ARGOS LTD,CL&G,Resources,"Grants, Contributions & Donations",A47005,
http://opendatacommunities.org/id/london-borough-council/sutton,London Borough of Sutton,30/09/2021,10004539,98.95, ARGOS LTD,CL&G,Resources,"Grants, Contributions & Donations",A47005,
http://opendatacommunities.org/id/london-borough-council/sutton,London Borough of Sutton,12/10/2021,10004539,876.93, ARGOS LTD,CL&G,Resources,"Grants, Contributions & Donations",A47005,
http://opendatacommunities.org/id/london-borough-council/sutton,London Borough of Sutton,04/10/2021,10004539,118.95, ARGOS LTD,CL&G,Resources,"Grants, Contributions & Donations",A47005,
http://opendatacommunities.org/id/london-borough-council/sutton,London Borough of Sutton,04/10/2021,10004539,314.00, CURRYS ONLINE,CL&G,Resources,"Grants, Contributions & Donations",A47005,
http://opendatacommunities.org/id/london-borough-council/sutton,London Borough of Sutton,04/10/2021,10004539,99.00, ARGOS LTD,CL&G,Resources,"Grants, Contributions & Donations",A47005,
http://opendatacommunities.org/id/london-borough-council/sutton,London Borough of Sutton,04/10/2021,10004539,568.93, ARGOS LTD,CL&G,Resources,"Grants, Contributions & Donations",A47005,
http://opendatacommunities.org/id/london-borough-council/sutton,London Borough of Sutton,04/10/2021,10004539,125.00, ARGOS LTD,CL&G,Resources,"Grants, Contributions & Donations",A47005,
http://opendatacommunities.org/id/london-borough-council/sutton,London Borough of Sutton,21/10/2021,10004539,237.95, ARGOS LTD,CL&G,Resources,"Grants, Contributions & Donations",A47005,
http://opendatacommunities.org/id/london-borough-council/sutton,London Borough of Sutton,21/10/2021,10004539,459.00, CURRYS ONLINE,CL&G,Resources,"Grants, Contributions & Donations",A47005,
http://opendatacommunities.org/id/london-borough-council/sutton,London Borough of Sutton,20/10/2021,10004539,92.95, ARGOS LTD,CL&G,Resources,"Grants, Contributions & Donations",A47005,
http://opendatacommunities.org/id/london-borough-council/sutton,London Borough of Sutton,20/10/2021,10004539,-130.00, ARGOS LTD,CL&G,Resources,"Grants, Contributions & Donations",A47005,
http://opendatacommunities.org/id/london-borough-council/sutton,London Borough of Sutton,20/10/2021,10004539,-8.95, ARGOS LTD,CL&G,Resources,"Grants, Contributions & Donations",A47005,
http://opendatacommunities.org/id/london-borough-council/sutton,London Borough of Sutton,19/10/2021,10004539,347.50, AO RETAIL LIMITED,CL&G,Resources,"Grants, Contributions & Donations",A47005,
http://opendatacommunities.org/id/london-borough-council/sutton,London Borough of Sutton,19/10/2021,10004539,337.95, ARGOS LTD,CL&G,Resources,"Grants, Contributions & Donations",A47005,
http://opendatacommunities.org/id/london-borough-council/sutton,London Borough of Sutton,14/10/2021,10004539,-185.45, ARGOS LTD,CL&G,Resources,"Grants, Contributions & Donations",A47005,
http://opendatacommunities.org/id/london-borough-council/sutton,London Borough of Sutton,30/09/2021,10004539,199.99, CURRYS ONLINE,CL&G,Resources,"Grants, Contributions & Donations",A47005,
http://opendatacommunities.org/id/london-borough-council/sutton,London Borough of Sutton,15/10/2021,10004539,179.00, ARGOS LTD,CL&G,Resources,"Grants, Contributions & Donations",A47005,
http://opendatacommunities.org/id/london-borough-council/sutton,London Borough of Sutton,15/10/2021,10004539,182.94, ARGOS LTD,CL&G,Resources,"Grants, Contributions & Donations",A47005,
http://opendatacommunities.org/id/london-borough-council/sutton,London Borough of Sutton,15/10/2021,10004539,686.93, ARGOS LTD,CL&G,Resources,"Grants, Contributions & Donations",A47005,
http://opendatacommunities.org/id/london-borough-council/sutton,London Borough of Sutton,15/10/2021,10004539,-6.95, ARGOS LTD,CL&G,Resources,"Grants, Contributions & Donations",A47005,
http://opendatacommunities.org/id/london-borough-council/sutton,London Borough of Sutton,14/10/2021,10004539,185.45, ARGOS LTD,CL&G,Resources,"Grants, Contributions & Donations",A47005,
http://opendatacommunities.org/id/london-borough-council/sutton,London Borough of Sutton,14/10/2021,10004539,-3.95, ARGOS LTD,CL&G,Resources,"Grants, Contributions & Donations",A47005,
http://opendatacommunities.org/id/london-borough-council/sutton,London Borough of Sutton,13/10/2021,10004539,84.00, WWW.GOV.UK,PROBATE CERTIFICATES,Resources,Miscellaneous Expenses,A49000,
http://opendatacommunities.org/id/london-borough-council/sutton,London Borough of Sutton,28/09/2021,10004539,241.50, MIM MIMEO LTD,PURCHASE OF BOOKS FOR INSURANCE SECTION,Resources,Training - Professional Qualification,A15024,
http://opendatacommunities.org/id/london-borough-council/sutton,London Borough of Sutton,28/09/2021,10004539,241.50, MIM MIMEO LTD,PURCHASE OF BOOKS FOR INSURANCE SECTION,Resources,Training - Professional Qualification,A15024,
http://opendatacommunities.org/id/london-borough-council/sutton,London Borough of Sutton,25/10/2021,10004539,495.04, AMZNMKTPLACE,SUNDRY ITEMS FOR SET UP FOR THE LONDON CANCER HUB INNOVATION GATEWAY,Resources,Contingency,A49001,
http://opendatacommunities.org/id/london-borough-council/sutton,London Borough of Sutton,05/10/2021,10004539,1.50, WWW.GOV.UK,PROBATE SEARCH - ASSH M VEACH,Resources,Legal Services,A44025,
http://opendatacommunities.org/id/london-borough-council/sutton,London Borough of Sutton,08/10/2021,10004539,390.12, MEON LTD,"LINE MARKING PAINT, YELLOW, WHITE AND BLACK",Environment Housing and Neighbourhoods,Road Markings,A20022,
http://opendatacommunities.org/id/london-borough-council/sutton,London Borough of Sutton,08/10/2021,10004539,33.32, AMZNMKTPLACE,PVC WINDOW VENETIAN BLIND FOR ENFORCEMENT SUPERVISORS OFFICE,Environment Housing and Neighbourhoods,Furniture - Purchase,A40015,
http://opendatacommunities.org/id/london-borough-council/sutton,London Borough of Sutton,08/10/2021,10004539,94.00, PREMIER INN,PREMIER INN ACCOMMODATION FOR 'REDACTED - Personal Data',Development Growth and Regeneration,Hotel Accomodation,A46010,
http://opendatacommunities.org/id/london-borough-council/sutton,London Borough of Sutton,22/10/2021,10004539,125.00, THE LONDON SOCIETY,ONE YEAR MEMBERSHIP FOR 'REDACTED - Personal Data' - LONDON SOCIETY,Development Growth and Regeneration,Subscriptions,A47010,
http://opendatacommunities.org/id/london-borough-council/sutton,London Borough of Sutton,08/10/2021,10004539,94.50, LNER WEB SALES,RETURN TRAIN FARE FOR 'REDACTED - Personal Data' FROM EUSTON LONDON TO WARRINGTON BANK QUAYS,Development Growth and Regeneration,Miscellaneous Expenses,A49000,
http://opendatacommunities.org/id/london-borough-council/sutton,London Borough of Sutton,08/10/2021,10004539,72.30, LNER WEB SALES,RETURN TRAIN FARE FOR 'REDACTED - Personal Data' FROM BRIGHTON TO LONDON VICTORIA,Development Growth and Regeneration,Miscellaneous Expenses,A49000,
http://opendatacommunities.org/id/london-borough-council/sutton,London Borough of Sutton,16/10/2021,10004539,6.92, AMAZON.CO.UK XW3EV0OW5,MILEAGE LOGBOOK FOR LALO VEHICLE,Environment Housing and Neighbourhoods,Stationery,A43015,
http://opendatacommunities.org/id/london-borough-council/sutton,London Borough of Sutton,03/10/2021,10004539,19.52, AMZNMKTPLACE AMAZON.CO,"SPLIT - WIRELESS DOORBELL, AVANTEK 1000 FEET/300 M LONG RANGE DOOR BELLS WITH 2 RECEIVERS, MINI IP55 WATERPROOF, LED FLASH, 5 LEVELS VOLUME, 52 MELODIES, LED G00370 A40000 (82.43%)",Peoples Services,Equipment And Materials Purchase,A40000,
http://opendatacommunities.org/id/london-borough-council/sutton,London Borough of Sutton,03/10/2021,10004539,4.16, AMZNMKTPLACE AMAZON.CO,BALANCING ENTRY AMOUNT (17.57%),Peoples Services,Equipment And Materials Purchase,A40000,
http://opendatacommunities.org/id/london-borough-council/sutton,London Borough of Sutton,06/10/2021,10004539,12.30, AMZNMKTPLACE,SPLIT - HENBRANDT 6X STRETCHY NOODLE STRING NEON KIDS CHILDRENS FIDGET STRESS RELIEF SENSORY TOY (100%),Peoples Services,Equipment And Materials Purchase,A40000,
http://opendatacommunities.org/id/london-borough-council/sutton,London Borough of Sutton,06/10/2021,10004539,18.97, BARRINGTON STOKE LTD,BOOKS,Peoples Services,Equipment And Materials Purchase,A40000,
http://opendatacommunities.org/id/london-borough-council/sutton,London Borough of Sutton,06/10/2021,10004539,19.94, AMAZON.CO.UK LW8JB87E5,"SPLIT - THE GAME OF LIFE GAME, FAMILY BOARD GAME FOR 2 TO 4 PLAYERS, FOR KIDS AGES 8 AND UP, INCLUDES COLOURFUL PEGS (82.74%)",Peoples Services,Equipment And Materials Purchase,A40000,
http://opendatacommunities.org/id/london-borough-council/sutton,London Borough of Sutton,06/10/2021,10004539,4.16, AMAZON.CO.UK LW8JB87E5,BALANCING ENTRY AMOUNT (17.26%),Peoples Services,Equipment And Materials Purchase,A40000,
http://opendatacommunities.org/id/london-borough-council/sutton,London Borough of Sutton,06/10/2021,10004539,13.00, WANDSWORTH COUNCIL,MARRIAGE CERTIFICATE,Peoples Services,Equipment And Materials Purchase,A40000,
http://opendatacommunities.org/id/london-borough-council/sutton,London Borough of Sutton,12/10/2021,10004539,50.00, SAINSBURYS SUPERMA,SH BDAY,Peoples Services,Equipment And Materials Purchase,A40000,
http://opendatacommunities.org/id/london-borough-council/sutton,London Borough of Sutton,11/10/2021,10004539,5.66, SUBWAY 68205 CARSHALTO,MA ACTIVITY,Peoples Services,Equipment And Materials Purchase,A40000,
http://opendatacommunities.org/id/london-borough-council/sutton,London Borough of Sutton,07/10/2021,10004539,8.46, MCDONALDS,RM ACTIVITY,Peoples Services,Equipment And Materials Purchase,A40000,
http://opendatacommunities.org/id/london-borough-council/sutton,London Borough of Sutton,25/10/2021,10004539,13.18, AMZNMKTPLACE AMAZON.CO,"SPLIT - ZERODECO BLACK AND GOLD PARTY DECORATIONS, HANGING PAPER FANS POM POMS FLOWERS TASSEL GARLANDS STRING TRIANGLE BUNTING FLAGS AND BALLOONS FOR BIRTHDAY (79.18%)",Peoples Services,Equipment And Materials Purchase,A40000,
http://opendatacommunities.org/id/london-borough-council/sutton,London Borough of Sutton,25/10/2021,10004539,3.47, AMZNMKTPLACE AMAZON.CO,BALANCING ENTRY AMOUNT (20.82%),Peoples Services,Equipment And Materials Purchase,A40000,
http://opendatacommunities.org/id/london-borough-council/sutton,London Borough of Sutton,07/10/2021,10004539,5.43, MCDONALDS,MC ACTIVITY,Peoples Services,Equipment And Materials Purchase,A40000,
http://opendatacommunities.org/id/london-borough-council/sutton,London Borough of Sutton,07/10/2021,10004539,30.00, WWW.UTILITA.CO.UK,MC GAS AND ELEC,Peoples Services,Miscellaneous Expenses,A49000,
http://opendatacommunities.org/id/london-borough-council/sutton,London Borough of Sutton,01/10/2021,10004539,20.83, GEN REGISTER OFFICE,BIRTH CERTIFICATE NEEDED FOR LEGAL PROCEEDINGS A49000 G03040,Peoples Services,Miscellaneous Expenses,A49000,
http://opendatacommunities.org/id/london-borough-council/sutton,London Borough of Sutton,22/10/2021,10004539,3.99, AMZNMKTPLACE,BALANCING ENTRY AMOUNT (16.67%),Peoples Services,Miscellaneous Expenses,A49000,
http://opendatacommunities.org/id/london-borough-council/sutton,London Borough of Sutton,22/10/2021,10004539,19.95, AMZNMKTPLACE,SPLIT - AFRICAN MUSICAL INSTRUMENTS OWARE - PAINTED AND HANDMADE IN GHANA (83.33%),Peoples Services,Miscellaneous Expenses,A49000,
http://opendatacommunities.org/id/london-borough-council/sutton,London Borough of Sutton,22/10/2021,10004539,6.98, MCDONALDS911,KB ACTIVITY,Peoples Services,Miscellaneous Expenses,A49000,
http://opendatacommunities.org/id/london-borough-council/sutton,London Borough of Sutton,21/10/2021,10004539,91.00, SAINSBURY'S S/MKT,KB PRISON RELEASE ITEMS,Peoples Services,Miscellaneous Expenses,A49000,
http://opendatacommunities.org/id/london-borough-council/sutton,London Borough of Sutton,20/10/2021,10004539,20.00, WWW.UTILITA.CO.UK,MC GAS AND ELECC,Peoples Services,Miscellaneous Expenses,A49000,
http://opendatacommunities.org/id/london-borough-council/sutton,London Borough of Sutton,29/09/2021,10004539,105.83, HM PASSPORT OFFICE,FAST TRACK PASSPORT APPLICATION FOR A LOOKED AFTER CHILD,Peoples Services,Miscellaneous Expenses,A49000,
http://opendatacommunities.org/id/london-borough-council/sutton,London Borough of Sutton,08/10/2021,10004539,19.95, AMZNMKTPLACE AMAZON.CO,EQUIPMENT NEEDED FOR AN EVENT IN THE QUAD (100%),Peoples Services,Miscellaneous Expenses,A49000,
http://opendatacommunities.org/id/london-borough-council/sutton,London Borough of Sutton,07/10/2021,10004539,15.00, WWW.UTILITA.CO.UK,MC ELEC,Peoples Services,Miscellaneous Expenses,A49000,
http://opendatacommunities.org/id/london-borough-council/sutton,London Borough of Sutton,20/10/2021,10004539,-90.00, ARGOS LTD,CANCELLED ITEMS ARGOS KB,Peoples Services,Miscellaneous Expenses,A49000,
http://opendatacommunities.org/id/london-borough-council/sutton,London Borough of Sutton,20/10/2021,10004539,-24.00, ARGOS LTD,CANCELLED ITEMS ARGOS KB,Peoples Services,Miscellaneous Expenses,A49000,
http://opendatacommunities.org/id/london-borough-council/sutton,London Borough of Sutton,18/10/2021,10004539,106.00, POST OFFICE COUNTER,JB,Peoples Services,Miscellaneous Expenses,A49000,
http://opendatacommunities.org/id/london-borough-council/sutton,London Borough of Sutton,14/10/2021,10004539,12.98, PETS AT HOME LTD,MC,Peoples Services,Miscellaneous Expenses,A49000,
http://opendatacommunities.org/id/london-borough-council/sutton,London Borough of Sutton,14/10/2021,10004539,10.03, MCDONALDS,MC ACTIVITY,Peoples Services,Miscellaneous Expenses,A49000,
http://opendatacommunities.org/id/london-borough-council/sutton,London Borough of Sutton,22/10/2021,10004539,120.00, IDH DENTAL,DENTAL APPOINTMENT PAYMENT,Peoples Services,Miscellaneous Expenses,A49000,
http://opendatacommunities.org/id/london-borough-council/sutton,London Borough of Sutton,18/10/2021,10004539,"1,349.20", 2NAA027694951 TD E-PMT,BRITISH CITIZENSHIP PAYMENT,Peoples Services,Miscellaneous Expenses,A49000,
http://opendatacommunities.org/id/london-borough-council/sutton,London Borough of Sutton,20/10/2021,10004539,163.73, ARGOS LTD,KB PRISON RELEASE ITEMS,Peoples Services,Miscellaneous Expenses,A49000,
http://opendatacommunities.org/id/london-borough-council/sutton,London Borough of Sutton,20/10/2021,10004539,-12.50, ARGOS LTD,CANCELLED ITEMS KB ARGOS,Peoples Services,Miscellaneous Expenses,A49000,
http://opendatacommunities.org/id/london-borough-council/sutton,London Borough of Sutton,28/09/2021,10004539,120.00, EBAY O 18-07660-35435,LIVING FURNITURE,Peoples Services,Living Allowance,A56016,
http://opendatacommunities.org/id/london-borough-council/sutton,London Borough of Sutton,07/10/2021,10004539,62.50, WWW.WIGHTLINK.CO.UK,SOCIAL WORKER VISITING OUT OF BOROUGH A61010 G03040,Peoples Services,C.C.A Travel & Subsistance,A61010,
http://opendatacommunities.org/id/london-borough-council/sutton,London Borough of Sutton,14/10/2021,10004539,137.50, CLOCKHOUSE CARS LTD,TAXI NEEDED FOR A YOUNG PERSON,Peoples Services,C.C.A Travel & Subsistance,A61010,
http://opendatacommunities.org/id/london-borough-council/sutton,London Borough of Sutton,16/10/2021,10004539,15.92, CLOCKTOWER CARS,TAXI NEEDED FOR AN EVENT FOR A YOUNG PERSON,Peoples Services,C.C.A Travel & Subsistance,A61010,
http://opendatacommunities.org/id/london-borough-council/sutton,London Borough of Sutton,16/10/2021,10004539,15.67, CLOCKTOWER CARS,TAXI NEEDED FOR A YOUNG PERSON,Peoples Services,C.C.A Travel & Subsistance,A61010,
http://opendatacommunities.org/id/london-borough-council/sutton,London Borough of Sutton,19/10/2021,10004539,842.00, SUTTON APPLIANCES,APPLIANCES,Peoples Services,Set Up Costs - Children Leaving Care,A61021,
http://opendatacommunities.org/id/london-borough-council/sutton,London Borough of Sutton,29/09/2021,10004539,29.16, SCREWFIX DIRECT,ITEMS REQUESTED BY SOCIAL WORKER A61021 G03040,Peoples Services,Set Up Costs - Children Leaving Care,A61021,
http://opendatacommunities.org/id/london-borough-council/sutton,London Borough of Sutton,03/10/2021,10004539,60.00, ARGOS LTD,SW SET UP,Peoples Services,Set Up Costs - Children Leaving Care,A61021,
http://opendatacommunities.org/id/london-borough-council/sutton,London Borough of Sutton,29/09/2021,10004539,-45.00, ARGOS LTD,REFUND FOR SW SET UP - NOT COLLECTED,Peoples Services,Set Up Costs - Children Leaving Care,A61021,
http://opendatacommunities.org/id/london-borough-council/sutton,London Borough of Sutton,20/10/2021,10004539,83.33, ARGOS LTD,MC SET UP,Peoples Services,Set Up Costs - Children Leaving Care,A61021,
http://opendatacommunities.org/id/london-borough-council/sutton,London Borough of Sutton,21/10/2021,10004539,70.40, ALL SAFETY LIMITED,VISIT TO DIGGER LAND - KENT,Peoples Services,Equipment And Materials Purchase,A40000,
http://opendatacommunities.org/id/london-borough-council/sutton,London Borough of Sutton,14/10/2021,10004539,16.24, SCREWFIX DIRECT,PRESENT FOR A YOUNG PERSON,Peoples Services,Contribution To/From Supplies And Services Provision,A48003,
http://opendatacommunities.org/id/london-borough-council/sutton,London Borough of Sutton,14/10/2021,10004539,22.08, AMZNMKTPLACE,REQUESTED BY SOCIAL WORKER FOR A YOUNG PERSON (84.15%),Peoples Services,Miscellaneous Expenses,A49000,
http://opendatacommunities.org/id/london-borough-council/sutton,London Borough of Sutton,14/10/2021,10004539,4.16, AMZNMKTPLACE,BALANCING ENTRY AMOUNT (15.85%),Peoples Services,Miscellaneous Expenses,A49000,
http://opendatacommunities.org/id/london-borough-council/sutton,London Borough of Sutton,13/10/2021,10004539,33.79, CLOCKTOWER CARS,TAXI NEEDED FOR A YOUNG PERSON,Peoples Services,Miscellaneous Expenses,A49000,
http://opendatacommunities.org/id/london-borough-council/sutton,London Borough of Sutton,22/10/2021,10004539,44.50, MARKS&SPENCER PLC,CLOTHING PAYMENT,Peoples Services,Miscellaneous Expenses,A49000,
http://opendatacommunities.org/id/london-borough-council/sutton,London Borough of Sutton,28/09/2021,10004539,230.00, HOTEL AT BOOKING.COM,BOOKING.COM,Peoples Services,Approved Lodgings,A61000,
http://opendatacommunities.org/id/london-borough-council/sutton,London Borough of Sutton,15/10/2021,10004539,65.00, SHERBETS,TAXI SERVICE,Peoples Services,C.C.A Travel & Subsistance,A61010,
http://opendatacommunities.org/id/london-borough-council/sutton,London Borough of Sutton,15/10/2021,10004539,56.00, ORANGE CARS,TAXI SERVICE,Peoples Services,C.C.A Travel & Subsistance,A61010,
http://opendatacommunities.org/id/london-borough-council/sutton,London Borough of Sutton,06/10/2021,10004539,-35.99, MINICABIT,"CAB DID NOT TURN UP, REFUND ISSUED  A61010 G03050",Peoples Services,C.C.A Travel & Subsistance,A61010,
http://opendatacommunities.org/id/london-borough-council/sutton,London Borough of Sutton,30/09/2021,10004539,21.67, EXPRESS CARS,TAXI NEEDED FOR YOUNG PEOPLE  A61010 G03050,Peoples Services,C.C.A Travel & Subsistance,A61010,
http://opendatacommunities.org/id/london-borough-council/sutton,London Borough of Sutton,15/10/2021,10004539,65.00, SHERBETS,TAXI SERVICE,Peoples Services,C.C.A Travel & Subsistance,A61010,
http://opendatacommunities.org/id/london-borough-council/sutton,London Borough of Sutton,01/10/2021,10004539,24.63, MINICABIT,CAB NEEDED FOR YOUNG PEOPLE  A61010 G03050,Peoples Services,C.C.A Travel & Subsistance,A61010,
http://opendatacommunities.org/id/london-borough-council/sutton,London Borough of Sutton,01/10/2021,10004539,35.99, MINICABIT,CAB NEEDED FOR YOUNG PEOPLE A61010 G03050,Peoples Services,C.C.A Travel & Subsistance,A61010,
http://opendatacommunities.org/id/london-borough-council/sutton,London Borough of Sutton,16/10/2021,10004539,-65.00, SHERBETS,TAXI SERVICE,Peoples Services,C.C.A Travel & Subsistance,A61010,
http://opendatacommunities.org/id/london-borough-council/sutton,London Borough of Sutton,16/10/2021,10004539,-65.00, SHERBETS,TAXI SERVICE,Peoples Services,C.C.A Travel & Subsistance,A61010,
http://opendatacommunities.org/id/london-borough-council/sutton,London Borough of Sutton,29/09/2021,10004539,246.67, CHESSINGTON ADVENTURES,YOUNG PERSON ACTIVITY  GO3050 A61011,Peoples Services,Client Care/Assistance,A61011,
http://opendatacommunities.org/id/london-borough-council/sutton,London Borough of Sutton,14/10/2021,10004539,19.00, UNITEDMANAGEMENTUK,TAXI SERVICE,Peoples Services,C.C.A Travel & Subsistance,A61010,
http://opendatacommunities.org/id/london-borough-council/sutton,London Borough of Sutton,14/10/2021,10004539,19.00, UNITEDMANAGEMENTUK,TAXI SERVICE,Peoples Services,C.C.A Travel & Subsistance,A61010,
http://opendatacommunities.org/id/london-borough-council/sutton,London Borough of Sutton,19/10/2021,10004539,-129.12, AMZ ELECTRONIC EMPIRE,"SPLIT - SHARP 1T-C24BC0KR1FB 24 INCH SMART TV, HD READY LCD DISPLAY WITH DTS STUDIO SOUND, DOLBY DIGITAL AUDIO DECODER, 2 X HDMI, 2 X USB, FREEVIEW PLAY AND W (100%)",Peoples Services,Set Up Costs - Children Leaving Care,A61021,
http://opendatacommunities.org/id/london-borough-council/sutton,London Borough of Sutton,08/10/2021,10004539,154.95, AMZNMKTPLACE,"SPLIT - SHARP 1T-C24BC0KR1FB 24 INCH SMART TV, HD READY LCD DISPLAY WITH DTS STUDIO SOUND, DOLBY DIGITAL AUDIO DECODER, 2 X HDMI, 2 X USB, FREEVIEW PLAY AND W (100%)",Peoples Services,Set Up Costs - Children Leaving Care,A61021,
http://opendatacommunities.org/id/london-borough-council/sutton,London Borough of Sutton,22/10/2021,10004539,159.83, AMAZON.CO.UK LY7PM4M45,"SPLIT - SHARP 1T-C24BC0KR1FB 24 INCH SMART TV, HD READY LCD DISPLAY WITH DTS STUDIO SOUND, DOLBY DIGITAL AUDIO DECODER, 2 X HDMI, 2 X USB, FREEVIEW PLAY AND W (97.46%)",Peoples Services,Set Up Costs - Children Leaving Care,A61021,
http://opendatacommunities.org/id/london-borough-council/sutton,London Borough of Sutton,22/10/2021,10004539,4.16, AMAZON.CO.UK LY7PM4M45,BALANCING ENTRY AMOUNT (2.54%),Peoples Services,Set Up Costs - Children Leaving Care,A61021,
http://opendatacommunities.org/id/london-borough-council/sutton,London Borough of Sutton,12/10/2021,10004539,"2,161.00", SVT LTD,TRAINING NEEDED FOR SOCIAL WORKER,Peoples Services,Staff Development And Training,A15022,
http://opendatacommunities.org/id/london-borough-council/sutton,London Borough of Sutton,29/09/2021,10004539,"2,521.00", SVT LTD,A COURSE NEEDED FOR SUPPORT WORKERS AT THORNTON ROAD  A15022 G03070,Peoples Services,Staff Development And Training,A15022,
http://opendatacommunities.org/id/london-borough-council/sutton,London Borough of Sutton,29/09/2021,10004539,81.35, ZAFETY SUPPLIES LTD,FIRST AID SUPPLIES FOR THORNTON ROAD A40000 G03070,Peoples Services,Equipment And Materials Purchase,A40000,
http://opendatacommunities.org/id/london-borough-council/sutton,London Borough of Sutton,22/10/2021,10004539,23.28, AMZNMKTPLACE,SPLIT - MTS STAINLESS STEEL BATHROOM FREESTANDING TOILET PAPER TISSUE ROLL HOLDER STORAGE (100%),Peoples Services,Equipment And Materials Purchase,A40000,
http://opendatacommunities.org/id/london-borough-council/sutton,London Borough of Sutton,22/10/2021,10004539,7.82, AMZNMKTPLACE,"SPLIT - DENNY INTERNATIONAL TOILET BRUSH & HOLDER, STAINLESS STEEL SILVER CHROME COLOUR | FREE STANDING WITH COVER LID FOR HYGIENIC | QUALITY PRODUCTS (74.35%)",Peoples Services,Equipment And Materials Purchase,A40000,
http://opendatacommunities.org/id/london-borough-council/sutton,London Borough of Sutton,03/10/2021,10004539,15.82, AMZNMKTPLACE,SPLIT - G4FREE OUTDOOR BACKPACK MULTIPURPOSE DAYPACK SMALL HIKING RUCKSACK MINI BOOKBAGS 10L FOR ADULTS AND TEENAGERS 40000 G03070 (79.18%),Peoples Services,Equipment And Materials Purchase,A40000,
http://opendatacommunities.org/id/london-borough-council/sutton,London Borough of Sutton,03/10/2021,10004539,4.16, AMZNMKTPLACE,BALANCING ENTRY AMOUNT (20.82%),Peoples Services,Equipment And Materials Purchase,A40000,
http://opendatacommunities.org/id/london-borough-council/sutton,London Borough of Sutton,20/10/2021,10004539,4.16, AMZNMKTPLACE AMAZON.CO,BALANCING ENTRY AMOUNT (21.92%),Peoples Services,Equipment And Materials Purchase,A40000,
http://opendatacommunities.org/id/london-borough-council/sutton,London Borough of Sutton,24/10/2021,10004539,16.98, AMZNMKTPLACE,"SPLIT - STAINLESS STEEL TOWEL RING, WALL MOUNTED TOWEL HANGER , ROUND SHAPE HAND/KITCHEN TOWEL HOLDER (CLASSIC) (100%)",Peoples Services,Equipment And Materials Purchase,A40000,
http://opendatacommunities.org/id/london-borough-council/sutton,London Borough of Sutton,20/10/2021,10004539,14.82, AMZNMKTPLACE AMAZON.CO,ITEMS NEEDED FOR THE THORNTON ROAD HOME (78.08%),Peoples Services,Equipment And Materials Purchase,A40000,
http://opendatacommunities.org/id/london-borough-council/sutton,London Borough of Sutton,11/10/2021,10004539,17.99, AMZNMKTPLACE,ITEMS NEEDED FOR THE LEAVING CARD PERSON (100%),Peoples Services,Equipment And Materials Purchase,A40000,
http://opendatacommunities.org/id/london-borough-council/sutton,London Borough of Sutton,13/10/2021,10004539,28.98, AMZNMKTPLACE,HOUSE EQUIPMENT FOR THORNTON ROAD CHILDRENS HOME (100%),Peoples Services,Equipment And Materials Purchase,A40000,
http://opendatacommunities.org/id/london-borough-council/sutton,London Borough of Sutton,22/10/2021,10004539,2.70, AMZNMKTPLACE,BALANCING ENTRY AMOUNT (25.65%),Peoples Services,Equipment And Materials Purchase,A40000,
http://opendatacommunities.org/id/london-borough-council/sutton,London Borough of Sutton,24/10/2021,10004539,9.72, AMZNMKTPLACE,"SPLIT - JIABEIUS 4 PCS MIRROR WALL STICKERS, HD MIRROR TILES SELF ADHESIVE FRAMELESS FULL-LENGTH MIRROR, EASY INSTALL WALL MIRROR STICKERS FOR BEDROOM OR BATH (100%)",Peoples Services,Equipment And Materials Purchase,A40000,
http://opendatacommunities.org/id/london-borough-council/sutton,London Borough of Sutton,22/10/2021,10004539,32.00, WILKO.COM,ESSENTIALS,Peoples Services,Equipment And Materials Purchase,A40000,
http://opendatacommunities.org/id/london-borough-council/sutton,London Borough of Sutton,19/10/2021,10004539,6.16, AMZNMKTPLACE AMAZON.CO,SPLIT - YOFASEN 10 PIECES REUSABLE WATERPROOF PE PLASTIC ELASTIC BAND HAT HAIR BATH CAPS SHOWER CAPS (13.36%),Peoples Services,Equipment And Materials Purchase,A40000,
http://opendatacommunities.org/id/london-borough-council/sutton,London Borough of Sutton,19/10/2021,10004539,39.96, AMZNMKTPLACE AMAZON.CO,SPLIT - IMPERIAL ROOMS FITTED SHEETS DOUBLE 25 CM BRUSHED MICROFIBRE EASY CARE SOFT BED SHEETS FADE RESISTANT (GREY) (86.64%),Peoples Services,Equipment And Materials Purchase,A40000,
http://opendatacommunities.org/id/london-borough-council/sutton,London Borough of Sutton,29/09/2021,10004539,3.28, EBAY O 12-07666-13189,ITEM NEEDED FOR HOME G03070 A40080,Peoples Services,Health & Safety Equipment,A40080,
http://opendatacommunities.org/id/london-borough-council/sutton,London Borough of Sutton,22/10/2021,10004539,"1,064.48", NEXTDAYCATERING.CO.UK,NEXT DAY PAYMENT - VENTED DRY,Peoples Services,Miscellaneous Expenses,A49000,
http://opendatacommunities.org/id/london-borough-council/sutton,London Borough of Sutton,21/10/2021,10004539,59.96, AMAZON.CO.UK 6209Q85O5,SPLIT - SLEEPDOWN SOFT HOTEL QUALITY 225 THREAD COUNT POLYCOTTON SATIN STRIPE DUVET COVER SET WITH PILLOWCASES IN GREY COLOUR(DOUBLE) (100%),Peoples Services,Miscellaneous Expenses,A49000,
http://opendatacommunities.org/id/london-borough-council/sutton,London Borough of Sutton,22/10/2021,10004539,"1,281.98", CURRYS ONLINE,CURRYS PAYMENT - FRIDGE/FREEZER X2,Peoples Services,Miscellaneous Expenses,A49000,
http://opendatacommunities.org/id/london-borough-council/sutton,London Borough of Sutton,14/10/2021,10004539,30.99, AMAZON.CO.UK 6N7NZ9K55,EDUCATIONAL BOOK FOR YOUNG PERSON (60.55%),Peoples Services,Education Allowance,A60008,
http://opendatacommunities.org/id/london-borough-council/sutton,London Borough of Sutton,14/10/2021,10004539,20.19, AMAZON.CO.UK 6N7NZ9K55,SPLIT - RESIDENTIAL CHILD CARE IN PRACTICE: MAKING A DIFFERENCE (SOCIAL WORK IN PRACTICE SERIES) (39.45%),Peoples Services,Education Allowance,A60008,
http://opendatacommunities.org/id/london-borough-council/sutton,London Borough of Sutton,18/10/2021,10004539,159.00, TVLICENSING.CO.UK,TV LICENCE PAYMENT,Peoples Services,Set Up Costs - Children Leaving Care,A61021,
http://opendatacommunities.org/id/london-borough-council/sutton,London Borough of Sutton,11/10/2021,10004539,399.83, AMAZON.CO.UK P97QG18A5,SETTING UP ALLOWANCE FOR A LEAVING CARE YOUNG PERSON (98.97%),Peoples Services,Set Up Costs - Children Leaving Care,A61021,
http://opendatacommunities.org/id/london-borough-council/sutton,London Borough of Sutton,11/10/2021,10004539,4.16, AMAZON.CO.UK P97QG18A5,SETTING UP ALLOWANCE FOR A LEAVING CARE YOUNG PERSON (1.03%),Peoples Services,Set Up Costs - Children Leaving Care,A61021,
http://opendatacommunities.org/id/london-borough-council/sutton,London Borough of Sutton,19/10/2021,10004539,409.00, CURRYS ONLINE,APPLIANCES,Peoples Services,Set Up Costs - Children Leaving Care,A61021,
http://opendatacommunities.org/id/london-borough-council/sutton,London Borough of Sutton,27/09/2021,10004539,932.00, SUTTON APPLIANCES,WHITE GOODS BEKO COOKER/FRIDGE FREEZER/WASHING MACHINE,Peoples Services,Set Up Costs - Children Leaving Care,A61021,
http://opendatacommunities.org/id/london-borough-council/sutton,London Borough of Sutton,27/09/2021,10004539,199.17, IKEA LTD SHOP ONLINE,BED FRAME,Peoples Services,Set Up Costs - Children Leaving Care,A61021,
http://opendatacommunities.org/id/london-borough-council/sutton,London Borough of Sutton,28/09/2021,10004539,159.00, TVLICENSING.CO.UK,TV LICENSING,Peoples Services,Set Up Costs - Children Leaving Care,A61021,
http://opendatacommunities.org/id/london-borough-council/sutton,London Borough of Sutton,27/09/2021,10004539,143.95, ARGOS LTD,BED MATTRESS,Peoples Services,Set Up Costs - Children Leaving Care,A61021,
http://opendatacommunities.org/id/london-borough-council/sutton,London Borough of Sutton,12/10/2021,10004539,-394.99, ARGOS LTD,REFUND,Peoples Services,Set Up Costs - Children Leaving Care,A61021,
http://opendatacommunities.org/id/london-borough-council/sutton,London Borough of Sutton,30/09/2021,10004539,159.90, ZOOM.US 888-799-9666,ZOOM NEEDED FOR TEAM A47010 G03100 9999,Peoples Services,Subscriptions,A47010,
http://opendatacommunities.org/id/london-borough-council/sutton,London Borough of Sutton,11/10/2021,10004539,30.92, TESCO STORES 5999,ITEMS NEEDED FOR SUTTON FAMILY CENTRE,Peoples Services,Equipment And Materials Purchase,A40000,
http://opendatacommunities.org/id/london-borough-council/sutton,London Borough of Sutton,10/10/2021,10004539,18.64, AMAZON.CO.UK VJ5I65CZ5,ITEMS NEEDED FOR THE SUTTON FAMILY CENTRE SITE (82.33%),Peoples Services,Equipment And Materials Purchase,A40000,
http://opendatacommunities.org/id/london-borough-council/sutton,London Borough of Sutton,10/10/2021,10004539,4.00, AMAZON.CO.UK VJ5I65CZ5,SPLIT - SHARPIE PERMANENT MARKERS | FINE POINT | BLACK | 2 COUNT (17.67%),Peoples Services,Equipment And Materials Purchase,A40000,
http://opendatacommunities.org/id/london-borough-council/sutton,London Borough of Sutton,20/10/2021,10004539,24.30, HOLLYWOOD BOWL,ACTIVITY,Peoples Services,Equipment And Materials Purchase,A40000,
http://opendatacommunities.org/id/london-borough-council/sutton,London Borough of Sutton,20/10/2021,10004539,118.00, LOCKMEADOW ENTERTAINME,ACTIVITY,Peoples Services,Equipment And Materials Purchase,A40000,
http://opendatacommunities.org/id/london-borough-council/sutton,London Borough of Sutton,08/10/2021,10004539,119.00, PREMIER INN,HOTEL - PREMIER INN (CARE PLANNING),Peoples Services,Equipment And Materials Purchase,A40000,
http://opendatacommunities.org/id/london-borough-council/sutton,London Borough of Sutton,27/09/2021,10004539,25.00, LB CROYDON,TWO COPIES OF BIRTH CERTIFICATES FOR LOOKED AFTER CHILD,Peoples Services,Equipment And Materials Purchase,A40000,
http://opendatacommunities.org/id/london-borough-council/sutton,London Borough of Sutton,15/10/2021,10004539,132.00, SUTTON REGISTER OFFICE,BIRTH CERT,Peoples Services,Miscellaneous Expenses,A49000,
http://opendatacommunities.org/id/london-borough-council/sutton,London Borough of Sutton,01/10/2021,10004539,18.33, SUTTON REGISTER OFFICE,HOTEL NEEDED FOR CLIENT  A49000 G03120,Peoples Services,Miscellaneous Expenses,A49000,
http://opendatacommunities.org/id/london-borough-council/sutton,London Borough of Sutton,07/10/2021,10004539,27.38, AMAZON.CO.UK AT3ZT9N15,"SPLIT - KENSINGTON WIRED ERGONOMIC MOUSE - PRO FIT ERGO WIRED MOUSE FOR YOUR HOME OFFICE - LAPTOP/DESKTOP/PC/GAMING, WITH USB 3.0 CONNECTION, 4 DPI SETTINGS A",Peoples Services,Miscellaneous Expenses,A49000,
http://opendatacommunities.org/id/london-borough-council/sutton,London Borough of Sutton,07/10/2021,10004539,8.89, AMZNMKTPLACE AMAZON.CO,ITEMS NEEDED FOR THE SUTTON FAMILY CENTRE SITE (66.64%),Peoples Services,Miscellaneous Expenses,A49000,
http://opendatacommunities.org/id/london-borough-council/sutton,London Borough of Sutton,07/10/2021,10004539,4.45, AMZNMKTPLACE AMAZON.CO,ITEMS NEEDED FOR THE SUTTON FAMILY CENTRE SITE (33.36%),Peoples Services,Miscellaneous Expenses,A49000,
http://opendatacommunities.org/id/london-borough-council/sutton,London Borough of Sutton,08/10/2021,10004539,35.60, AMZNMKTPLACE,ITEMS NEEDED FOR THE SUTTON FAMILY CENTRE SITE (102.09%),Peoples Services,Miscellaneous Expenses,A49000,
http://opendatacommunities.org/id/london-borough-council/sutton,London Borough of Sutton,08/10/2021,10004539,-0.73, AMZNMKTPLACE,BALANCING ENTRY AMOUNT (-6.27%),Peoples Services,Miscellaneous Expenses,A49000,
http://opendatacommunities.org/id/london-borough-council/sutton,London Borough of Sutton,15/10/2021,10004539,-18.58, MINICABIT,A61010 TAXI NEEDED FOR A YOUNG PERSON,Peoples Services,C.C.A Travel & Subsistance,A61010,
http://opendatacommunities.org/id/london-borough-council/sutton,London Borough of Sutton,15/10/2021,10004539,82.96, MINICABIT, A61010 TAXI NEEDED FOR A YOUNG PERSON,Peoples Services,C.C.A Travel & Subsistance,A61010,
http://opendatacommunities.org/id/london-borough-council/sutton,London Borough of Sutton,15/10/2021,10004539,31.63, MINICABIT, A61010 TAXI NEEDED FOR A YOUNG PERSON,Peoples Services,C.C.A Travel & Subsistance,A61010,
http://opendatacommunities.org/id/london-borough-council/sutton,London Borough of Sutton,14/10/2021,10004539,22.20, WWW.WIGHTLINK.CO.UK,FERRY FROM PORTSMOUTH TO RYDE RETURN (FAMILY SUPPORT/CARE PLANNING),Peoples Services,C.C.A Travel & Subsistance,A61010,
http://opendatacommunities.org/id/london-borough-council/sutton,London Borough of Sutton,01/10/2021,10004539,12.50, WALLINGTON STATION CAR,TAXI NEEDED FOR SOCIAL WORKER A61010 G03160,Peoples Services,C.C.A Travel & Subsistance,A61010,
http://opendatacommunities.org/id/london-borough-council/sutton,London Borough of Sutton,21/10/2021,10004539,"2,644.55", TRAVELODGE,TRAVEL LODGE FOR HOMELESS CHILD UNDER CHILD CARE ACT,Peoples Services,Payments Under the Child Care Act 1980,A61018,
http://opendatacommunities.org/id/london-borough-council/sutton,London Borough of Sutton,06/10/2021,10004539,70.00, FACEBK  MYXNK5KG32,FACEBOOK ADS FOR FOSTERING RECRUITMENT,Peoples Services,Recruitment Expenses,A15026,
http://opendatacommunities.org/id/london-borough-council/sutton,London Borough of Sutton,17/10/2021,10004539,70.00, FACEBK  RVMNL7FG32,FACEBOOK ADS FOR FOSTERING RECRUITMENT,Peoples Services,Recruitment Expenses,A15026,
http://opendatacommunities.org/id/london-borough-council/sutton,London Borough of Sutton,22/10/2021,10004539,16.00, WESTMINSTER CITY COUNC,BIRTH CERTIFICATE PAYMENT,Peoples Services,Equipment And Materials Purchase,A40000,
http://opendatacommunities.org/id/london-borough-council/sutton,London Borough of Sutton,22/10/2021,10004539,13.00, WWW.LBHF.GOV.UK,BIRTH CERTIFICATE PURCHASE,Peoples Services,Equipment And Materials Purchase,A40000,
http://opendatacommunities.org/id/london-borough-council/sutton,London Borough of Sutton,27/09/2021,10004539,53.87, W M MORRISONS.COM,FOOD NEEDED FOR YOUNG PEOPLE IN A HOME G03300 A61011,Peoples Services,Client Care/Assistance,A61011,
http://opendatacommunities.org/id/london-borough-council/sutton,London Borough of Sutton,22/10/2021,10004539,68.40, TEAM SPORT KARTING,GO KART PAYMENT,Peoples Services,Equipment And Materials Purchase,A40000,
http://opendatacommunities.org/id/london-borough-council/sutton,London Borough of Sutton,22/10/2021,10004539,176.00, WWW.BOOKING.GLL.ORG,TRAMPOLINE PARK PAYMENT,Peoples Services,Equipment And Materials Purchase,A40000,
http://opendatacommunities.org/id/london-borough-council/sutton,London Borough of Sutton,01/10/2021,10004539,38.34, STAPLES,ITEMS REQUESTED BY THE SOCIAL WORKER A40000 G03630 9999,Peoples Services,Equipment And Materials Purchase,A40000,
http://opendatacommunities.org/id/london-borough-council/sutton,London Borough of Sutton,21/10/2021,10004539,34.80, STK SHUTTERSTOCK,TRANSPORT PAYMENT,Peoples Services,Other Supplies & Services,A44291,
http://opendatacommunities.org/id/london-borough-council/sutton,London Borough of Sutton,07/10/2021,10004539,"2,233.33", HIGHSTREETVOUCHERS,VOUCHERS NEEDED FOR A CICC EVENT,Peoples Services,Miscellaneous Expenses,A49000,
http://opendatacommunities.org/id/london-borough-council/sutton,London Borough of Sutton,29/09/2021,10004539,20.79, HOBBYCRAFT TRADING LIM,CELEBRATING SUCCESS EVENT A49000 G03630,Peoples Services,Miscellaneous Expenses,A49000,
http://opendatacommunities.org/id/london-borough-council/sutton,London Borough of Sutton,20/10/2021,10004539,"1,800.00", S.C.T.S,TRAINING,Peoples Services,Staff Development And Training,A15022,
http://opendatacommunities.org/id/london-borough-council/sutton,London Borough of Sutton,22/10/2021,10004539,479.00, PREMIER INN,HOTEL STAY,Peoples Services,Client Care/Assistance,A61011,
http://opendatacommunities.org/id/london-borough-council/sutton,London Borough of Sutton,27/09/2021,10004539,283.00, HOLIDAY INNS,HOLIDAY INN ACCOMODATION - GREEN WEST LOCALITY,Peoples Services,Approved Lodgings,A61000,
http://opendatacommunities.org/id/london-borough-council/sutton,London Borough of Sutton,18/10/2021,10004539,65.71, HOTEL IBIS,HOTEL ROOM,Peoples Services,Client Care/Assistance,A61011,
http://opendatacommunities.org/id/london-borough-council/sutton,London Borough of Sutton,06/10/2021,10004539,50.00, GEN REGISTER OFFICE,BIRTH CERTIFICATE ORDER,Peoples Services,Equipment And Materials Purchase,A40000,
http://opendatacommunities.org/id/london-borough-council/sutton,London Borough of Sutton,01/10/2021,10004539,115.83, HOTEL AT BOOKING.COM,HOTEL NEEDED FOR SOCIAL WORKER A61011 G03840,Peoples Services,Client Care/Assistance,A61011,
http://opendatacommunities.org/id/london-borough-council/sutton,London Borough of Sutton,05/10/2021,10004539,-441.25, ACCESS SUTTON,REFUND AS WE PAID FOR 6 MONTHS BUT HAVE SINCE CLOSED OUR ACCOUNT FOR THIS CLIENT  A40000 J64020,Peoples Services,Equipment And Materials Purchase,A40000,
http://opendatacommunities.org/id/london-borough-council/sutton,London Borough of Sutton,05/10/2021,10004539,-418.24, ACCESS SUTTON,REFUND AS WE PAID FOR 6 MONTHS BUT HAVE SINCE CLOSED OUR ACCOUNT FOR THIS CLIENT  A40000 J64020,Peoples Services,Equipment And Materials Purchase,A40000,
http://opendatacommunities.org/id/london-borough-council/sutton,London Borough of Sutton,05/10/2021,10004539,-349.73, ACCESS SUTTON,REFUND AS WE PAID FOR 6 MONTHS BUT HAVE SINCE CLOSED OUR ACCOUNT FOR THIS CLIENT  A40000 J64020,Peoples Services,Equipment And Materials Purchase,A40000,
http://opendatacommunities.org/id/london-borough-council/sutton,London Borough of Sutton,15/10/2021,10004539,27.00, TRACK CARS,TAXI SERVICE,Peoples Services,C.C.A Travel & Subsistance,A61010,
http://opendatacommunities.org/id/london-borough-council/sutton,London Borough of Sutton,01/10/2021,10004539,89.03, STORAGEMART UK A-87781,STORAGE FOR CLIENT- A44085 J64090,Peoples Services,Storage And Archiving Services,A44085,
http://opendatacommunities.org/id/london-borough-council/sutton,London Borough of Sutton,07/10/2021,10004539,66.67, ACCESS SUTTON,STORAGE NEEDED FOR A CLIENT A40000 J6410,Peoples Services,Equipment And Materials Purchase,A40000,
http://opendatacommunities.org/id/london-borough-council/sutton,London Borough of Sutton,29/09/2021,10004539,"1,040.31", TRAVELODGE,HOTEL NEEDED FOR CLIENT A456000 J641000,Peoples Services,Equipment And Materials Purchase,A40000,
http://opendatacommunities.org/id/london-borough-council/sutton,London Borough of Sutton,29/09/2021,10004539,611.06, TRAVELODGE,HOTEL NEEDED FOR CLIENT A56000 J64100,Peoples Services,Bed & Breakfast,A56000,
http://opendatacommunities.org/id/london-borough-council/sutton,London Borough of Sutton,29/09/2021,10004539,806.56, TRAVELODGE,HOTEL NEEDED FOR CLIENT A56000 J64100,Peoples Services,Bed & Breakfast,A56000,
http://opendatacommunities.org/id/london-borough-council/sutton,London Borough of Sutton,11/10/2021,10004539,"2,156.42", TRAVELODGE,HOTEL NEEDED FOR A YOUNG PERSON,Peoples Services,Accommodation - Bed and Breakfast,A62000,
http://opendatacommunities.org/id/london-borough-council/sutton,London Borough of Sutton,11/10/2021,10004539,102.95, HOSPITAL DIRECT,DISPOSABLE SLIDE SHEETS,Peoples Services,Health & Safety Equipment,A40080,
http://opendatacommunities.org/id/london-borough-council/sutton,London Borough of Sutton,11/10/2021,10004539,500.00, PURELY BABY UK,FOR START CARERS PPE DISTRIBUTION,Peoples Services,Health & Safety Equipment,A40080,
http://opendatacommunities.org/id/london-borough-council/sutton,London Borough of Sutton,15/10/2021,10004539,418.17, CS MORRISONS GIFT CARD,FOOD VOUCHERS FOR START CLIENTS' EMERGENCIES,Peoples Services,Miscellaneous Expenses,A49000,
http://opendatacommunities.org/id/london-borough-council/sutton,London Borough of Sutton,20/10/2021,10004539,11.00, SURREY CC CARD PAY,DEATH CERT,Peoples Services,Funeral Expenses,A44220,
http://opendatacommunities.org/id/london-borough-council/sutton,London Borough of Sutton,06/10/2021,10004539,11.00, LBSUTTON MOTO,DEATH CERT,Peoples Services,Funeral Expenses,A44220,
http://opendatacommunities.org/id/london-borough-council/sutton,London Borough of Sutton,21/10/2021,10004539,499.80, WWW.ETCVENUES.CO.UK,AWAY DAY VENUE FOR 'REDACTED - Personal Data' ADULT SOCIAL CARE,Peoples Services,Staff Development And Training,A15022,
http://opendatacommunities.org/id/london-borough-council/sutton,London Borough of Sutton,11/10/2021,10004539,69.00, ISTOCK.COM,STOCK IMAGES FOR SCHOOL STREETS LAUNCH (ORDER NO: 2075155836),Environment Housing and Neighbourhoods,External Fees and Consultants,C20000,
http://opendatacommunities.org/id/london-borough-council/sutton,London Borough of Sutton,18/10/2021,10004539,40.00, WM MORRISONS STORE,LGBT HISTORY MTH/PREVENT AWARENESS WK PRIZES,Health and Wellbeing,Miscellaneous Expenses,A49000,
http://opendatacommunities.org/id/london-borough-council/sutton,London Borough of Sutton,11/10/2021,10004539,20.53, SCREWFIX DIRECT,IT CABLE TIES 'REDACTED - Personal Data',Health and Wellbeing,IT Software Purchase,A45040,
http://opendatacommunities.org/id/london-borough-council/sutton,London Borough of Sutton,08/10/2021,10004539,39.99, ADOBE STOCK,ADOBE 071021 47.99,Health and Wellbeing,Publicity,A44266,
http://opendatacommunities.org/id/london-borough-council/sutton,London Borough of Sutton,30/09/2021,10004539,55.09, MAILCHIMP,MAILCHIMP 300921 66.11,Health and Wellbeing,Publicity,A44266,
http://opendatacommunities.org/id/london-borough-council/sutton,London Borough of Sutton,29/09/2021,10004539,1.00, WALLINGTON BARGAIN BUY,COOKERY,Health and Wellbeing,Equipment And Materials Purchase,A40000,
http://opendatacommunities.org/id/london-borough-council/sutton,London Borough of Sutton,27/09/2021,10004539,16.01, SAINSBURYS S/MKTS,COOKERY INGREDIENTS,Health and Wellbeing,Equipment And Materials Purchase,A40000,
http://opendatacommunities.org/id/london-borough-council/sutton,London Borough of Sutton,27/09/2021,10004539,5.65, TESCO STORES 5511,COOKERY EQUIP,Health and Wellbeing,Equipment And Materials Purchase,A40000,
http://opendatacommunities.org/id/london-borough-council/sutton,London Borough of Sutton,12/10/2021,10004539,8.50, WILKO RETAIL LIMITED,COOKERY,Health and Wellbeing,Equipment And Materials Purchase,A40000,
http://opendatacommunities.org/id/london-borough-council/sutton,London Borough of Sutton,11/10/2021,10004539,23.14, SAINSBURYS S/MKTS,COOKERY,Health and Wellbeing,Equipment And Materials Purchase,A40000,
http://opendatacommunities.org/id/london-borough-council/sutton,London Borough of Sutton,06/10/2021,10004539,20.83, SAINSBURYS S/MKTS,COOKERY,Health and Wellbeing,Equipment And Materials Purchase,A40000,
http://opendatacommunities.org/id/london-borough-council/sutton,London Borough of Sutton,04/10/2021,10004539,5.00, SAINSBURYS S/MKTS,COOKERY,Health and Wellbeing,Equipment And Materials Purchase,A40000,
http://opendatacommunities.org/id/london-borough-council/sutton,London Borough of Sutton,04/10/2021,10004539,20.74, WM MORRISONS STORE,COOKERY,Health and Wellbeing,Equipment And Materials Purchase,A40000,
http://opendatacommunities.org/id/london-borough-council/sutton,London Borough of Sutton,29/09/2021,10004539,17.71, SAINSBURYS S/MKTS,COOKERY,Health and Wellbeing,Equipment And Materials Purchase,A40000,
http://opendatacommunities.org/id/london-borough-council/sutton,London Borough of Sutton,20/10/2021,10004539,13.84, SAINSBURYS S/MKTS,COOKERY,Health and Wellbeing,Equipment And Materials Purchase,A40000,
http://opendatacommunities.org/id/london-borough-council/sutton,London Borough of Sutton,18/10/2021,10004539,2.00, TESCO STORES 5511,COOKERY,Health and Wellbeing,Equipment And Materials Purchase,A40000,
http://opendatacommunities.org/id/london-borough-council/sutton,London Borough of Sutton,18/10/2021,10004539,12.85, SAINSBURYS S/MKTS,COOKERY,Health and Wellbeing,Equipment And Materials Purchase,A40000,
http://opendatacommunities.org/id/london-borough-council/sutton,London Borough of Sutton,13/10/2021,10004539,16.69, SAINSBURYS S/MKTS,COOKERY,Health and Wellbeing,Equipment And Materials Purchase,A40000,
http://opendatacommunities.org/id/london-borough-council/sutton,London Borough of Sutton,21/10/2021,10004539,11.29, AMAZON.CO.UK TI08J0D25,"SPLIT - AFRICA, AMAZING AFRICA: COUNTRY BY COUNTRY: 1 (100%)",Peoples Services,LAC - Education,A44280,
http://opendatacommunities.org/id/london-borough-council/sutton,London Borough of Sutton,23/10/2021,10004539,5.40, AMAZON.CO.UK IQ5TN60V5,"SPLIT - BLACK AND BRITISH: A SHORT, ESSENTIAL HISTORY (100%)",Peoples Services,LAC - Education,A44280,
http://opendatacommunities.org/id/london-borough-council/sutton,London Borough of Sutton,23/10/2021,10004539,5.40, AMAZON.CO.UK P307U6FQ5,"SPLIT - BLACK AND BRITISH: A SHORT, ESSENTIAL HISTORY (100%)",Peoples Services,LAC - Education,A44280,
http://opendatacommunities.org/id/london-borough-council/sutton,London Borough of Sutton,23/10/2021,10004539,13.46, AMAZON.CO.UK KF0LC4OS5,SPLIT - MY DOG ROMEO (100%),Peoples Services,LAC - Education,A44280,
http://opendatacommunities.org/id/london-borough-council/sutton,London Borough of Sutton,06/10/2021,10004539,3.99, AMAZON.CO.UK GV4956P85,BALANCING ENTRY AMOUNT (29.62%),Peoples Services,LAC - Education,A44280,
http://opendatacommunities.org/id/london-borough-council/sutton,London Borough of Sutton,21/10/2021,10004539,5.40, AMAZON.CO.UK R14J50Q45,"SPLIT - BLACK AND BRITISH: A SHORT, ESSENTIAL HISTORY (100%)",Peoples Services,LAC - Education,A44280,
http://opendatacommunities.org/id/london-borough-council/sutton,London Borough of Sutton,24/10/2021,10004539,5.40, AMAZON.CO.UK LF56O4F65,"SPLIT - BLACK AND BRITISH: A SHORT, ESSENTIAL HISTORY (100%)",Peoples Services,LAC - Education,A44280,
http://opendatacommunities.org/id/london-borough-council/sutton,London Borough of Sutton,24/10/2021,10004539,5.40, AMAZON.CO.UK FC31B6765,"SPLIT - BLACK AND BRITISH: A SHORT, ESSENTIAL HISTORY (100%)",Peoples Services,LAC - Education,A44280,
http://opendatacommunities.org/id/london-borough-council/sutton,London Borough of Sutton,22/10/2021,10004539,5.40, AMAZON.CO.UK UZ42D2WT5,"SPLIT - BLACK AND BRITISH: A SHORT, ESSENTIAL HISTORY (100%)",Peoples Services,LAC - Education,A44280,
http://opendatacommunities.org/id/london-borough-council/sutton,London Borough of Sutton,21/10/2021,10004539,5.40, AMAZON.CO.UK 7Q4QK9UW5,"SPLIT - BLACK AND BRITISH: A SHORT, ESSENTIAL HISTORY (100%)",Peoples Services,LAC - Education,A44280,
http://opendatacommunities.org/id/london-borough-council/sutton,London Borough of Sutton,21/10/2021,10004539,11.29, AMAZON.CO.UK RO7Q369W5,"SPLIT - AFRICA, AMAZING AFRICA: COUNTRY BY COUNTRY: 1 (100%)",Peoples Services,LAC - Education,A44280,
http://opendatacommunities.org/id/london-borough-council/sutton,London Borough of Sutton,07/10/2021,10004539,5.95, AMAZON.CO.UK S47LO6UK5,SPLIT - BALLERINA DREAMS,Peoples Services,LAC - Education,A44280,
http://opendatacommunities.org/id/london-borough-council/sutton,London Borough of Sutton,07/10/2021,10004539,9.99, AMAZON.CO.UK JS15Q6K55,SPLIT - BABY'S VERY FIRST NURSERY RHYMES PLAYBOOK (BABY'S VERY FIRST BOOKS): 1 (71.46%),Peoples Services,LAC - Education,A44280,
http://opendatacommunities.org/id/london-borough-council/sutton,London Borough of Sutton,06/10/2021,10004539,9.48, AMAZON.CO.UK GV4956P85,SPLIT - GRADE 9-1 GCSE ENGLISH LANGUAGE AND LITERATURE COMPLETE REVISION & PRACTICE (WITH ONLINE EDN): PERFECT FOR CATCH-UP AND THE 2022 AND 2023 EXAMS (CGP G (70.38%),Peoples Services,LAC - Education,A44280,
http://opendatacommunities.org/id/london-borough-council/sutton,London Borough of Sutton,06/10/2021,10004539,7.20, AMZNMKTPLACE,SPLIT - REVOLTING RHYMES (COLOUR EDITION) (18.85%),Peoples Services,LAC - Education,A44280,
http://opendatacommunities.org/id/london-borough-council/sutton,London Borough of Sutton,06/10/2021,10004539,4.00, AMAZON.CO.UK 6M3U089C5,SPLIT - THEY BOTH DIE AT THE END: TIKTOK MADE ME BUY IT! THE INTERNATIONAL NO.1 BESTSELLER (50.06%),Peoples Services,LAC - Education,A44280,
http://opendatacommunities.org/id/london-borough-council/sutton,London Borough of Sutton,06/10/2021,10004539,3.99, AMAZON.CO.UK 6M3U089C5,BALANCING ENTRY AMOUNT (49.94%),Peoples Services,LAC - Education,A44280,
http://opendatacommunities.org/id/london-borough-council/sutton,London Borough of Sutton,22/10/2021,10004539,13.46, AMAZON.CO.UK 419RP7IN5,SPLIT - MY DOG ROMEO (100%),Peoples Services,LAC - Education,A44280,
http://opendatacommunities.org/id/london-borough-council/sutton,London Borough of Sutton,20/10/2021,10004539,5.94, AMAZON.CO.UK CR6NR5845,SPLIT - THE GIRL OF INK & STARS: WINNER OF THE WATERSTONES CHILDREN'S BOOK PRIZE (38.25%),Peoples Services,LAC - Education,A44280,
http://opendatacommunities.org/id/london-borough-council/sutton,London Borough of Sutton,20/10/2021,10004539,9.59, AMAZON.CO.UK CR6NR5845,SPLIT - WRECK THIS JOURNAL: NOW IN COLOUR (61.75%),Peoples Services,LAC - Education,A44280,
http://opendatacommunities.org/id/london-borough-council/sutton,London Borough of Sutton,21/10/2021,10004539,11.29, AMAZON.CO.UK VH7SL9355,"SPLIT - AFRICA, AMAZING AFRICA: COUNTRY BY COUNTRY: 1 (100%)",Peoples Services,LAC - Education,A44280,
http://opendatacommunities.org/id/london-borough-council/sutton,London Borough of Sutton,21/10/2021,10004539,5.40, AMAZON.CO.UK ZI73F1ZR5,"SPLIT - BLACK AND BRITISH: A SHORT, ESSENTIAL HISTORY (100%)",Peoples Services,LAC - Education,A44280,
http://opendatacommunities.org/id/london-borough-council/sutton,London Borough of Sutton,21/10/2021,10004539,11.29, AMAZON.CO.UK DL4925LP5,"SPLIT - AFRICA, AMAZING AFRICA: COUNTRY BY COUNTRY: 1 (100%)",Peoples Services,LAC - Education,A44280,
http://opendatacommunities.org/id/london-borough-council/sutton,London Borough of Sutton,21/10/2021,10004539,11.29, AMAZON.CO.UK E461X05Y5,"SPLIT - AFRICA, AMAZING AFRICA: COUNTRY BY COUNTRY: 1 (100%)",Peoples Services,LAC - Education,A44280,
http://opendatacommunities.org/id/london-borough-council/sutton,London Borough of Sutton,21/10/2021,10004539,14.36, AMZNMKTPLACE AMAZON.CO,SPLIT - MY DOG ROMEO (100%),Peoples Services,LAC - Education,A44280,
http://opendatacommunities.org/id/london-borough-council/sutton,London Borough of Sutton,21/10/2021,10004539,14.36, AMZNMKTPLACE,SPLIT - MY DOG ROMEO (100%),Peoples Services,LAC - Education,A44280,
http://opendatacommunities.org/id/london-borough-council/sutton,London Borough of Sutton,21/10/2021,10004539,14.36, AMZNMKTPLACE,SPLIT - MY DOG ROMEO (100%),Peoples Services,LAC - Education,A44280,
http://opendatacommunities.org/id/london-borough-council/sutton,London Borough of Sutton,21/10/2021,10004539,14.36, AMZNMKTPLACE,SPLIT - MY DOG ROMEO (100%),Peoples Services,LAC - Education,A44280,
http://opendatacommunities.org/id/london-borough-council/sutton,London Borough of Sutton,21/10/2021,10004539,14.36, AMZNMKTPLACE AMAZON.CO,SPLIT - MY DOG ROMEO (100%),Peoples Services,LAC - Education,A44280,
http://opendatacommunities.org/id/london-borough-council/sutton,London Borough of Sutton,07/10/2021,10004539,3.99, AMAZON.CO.UK JS15Q6K55,BALANCING ENTRY AMOUNT (28.54%),Peoples Services,LAC - Education,A44280,
http://opendatacommunities.org/id/london-borough-council/sutton,London Borough of Sutton,07/10/2021,10004539,12.99, AMAZON.CO.UK LU92S4CG5,SPLIT - LISTIFIED!: BRITANNICA'S 300 LISTS THAT WILL BLOW YOUR MIND. (100%),Peoples Services,LAC - Education,A44280,
http://opendatacommunities.org/id/london-borough-council/sutton,London Borough of Sutton,21/10/2021,10004539,11.29, AMAZON.CO.UK PT6G39B95,"SPLIT - AFRICA, AMAZING AFRICA: COUNTRY BY COUNTRY: 1 (100%)",Peoples Services,LAC - Education,A44280,
http://opendatacommunities.org/id/london-borough-council/sutton,London Borough of Sutton,21/10/2021,10004539,11.29, AMAZON.CO.UK R14PK2LO5,"SPLIT - AFRICA, AMAZING AFRICA: COUNTRY BY COUNTRY: 1 (100%)",Peoples Services,LAC - Education,A44280,
http://opendatacommunities.org/id/london-borough-council/sutton,London Borough of Sutton,22/10/2021,10004539,5.40, AMAZON.CO.UK 8C3QL0XA5,"SPLIT - BLACK AND BRITISH: A SHORT, ESSENTIAL HISTORY (100%)",Peoples Services,LAC - Education,A44280,
http://opendatacommunities.org/id/london-borough-council/sutton,London Borough of Sutton,22/10/2021,10004539,5.40, AMAZON.CO.UK 915W65R65,"SPLIT - BLACK AND BRITISH: A SHORT, ESSENTIAL HISTORY (100%)",Peoples Services,LAC - Education,A44280,
http://opendatacommunities.org/id/london-borough-council/sutton,London Borough of Sutton,22/10/2021,10004539,5.40, AMAZON.CO.UK YR46E3745,"SPLIT - BLACK AND BRITISH: A SHORT, ESSENTIAL HISTORY (100%)",Peoples Services,LAC - Education,A44280,
http://opendatacommunities.org/id/london-borough-council/sutton,London Borough of Sutton,22/10/2021,10004539,5.40, AMAZON.CO.UK OG56U28U5,"SPLIT - BLACK AND BRITISH: A SHORT, ESSENTIAL HISTORY (100%)",Peoples Services,LAC - Education,A44280,
http://opendatacommunities.org/id/london-borough-council/sutton,London Borough of Sutton,22/10/2021,10004539,5.40, AMAZON.CO.UK RA2L13FY5,"SPLIT - BLACK AND BRITISH: A SHORT, ESSENTIAL HISTORY (100%)",Peoples Services,LAC - Education,A44280,
http://opendatacommunities.org/id/london-borough-council/sutton,London Borough of Sutton,22/10/2021,10004539,5.40, AMAZON.CO.UK 194962AX5,"SPLIT - BLACK AND BRITISH: A SHORT, ESSENTIAL HISTORY (100%)",Peoples Services,LAC - Education,A44280,
http://opendatacommunities.org/id/london-borough-council/sutton,London Borough of Sutton,22/10/2021,10004539,5.40, AMAZON.CO.UK KS9EN91N5,"SPLIT - BLACK AND BRITISH: A SHORT, ESSENTIAL HISTORY (100%)",Peoples Services,LAC - Education,A44280,
http://opendatacommunities.org/id/london-borough-council/sutton,London Borough of Sutton,22/10/2021,10004539,5.40, AMAZON.CO.UK FD2XQ6Z65,"SPLIT - BLACK AND BRITISH: A SHORT, ESSENTIAL HISTORY (100%)",Peoples Services,LAC - Education,A44280,
http://opendatacommunities.org/id/london-borough-council/sutton,London Borough of Sutton,22/10/2021,10004539,5.40, AMAZON.CO.UK D10BK0UV5,"SPLIT - BLACK AND BRITISH: A SHORT, ESSENTIAL HISTORY (100%)",Peoples Services,LAC - Education,A44280,
http://opendatacommunities.org/id/london-borough-council/sutton,London Borough of Sutton,21/10/2021,10004539,5.40, AMAZON.CO.UK LL48K6PO5,"SPLIT - BLACK AND BRITISH: A SHORT, ESSENTIAL HISTORY (100%)",Peoples Services,LAC - Education,A44280,
http://opendatacommunities.org/id/london-borough-council/sutton,London Borough of Sutton,21/10/2021,10004539,11.29, AMAZON.CO.UK OH7VY6Y05,"SPLIT - AFRICA, AMAZING AFRICA: COUNTRY BY COUNTRY: 1 (100%)",Peoples Services,LAC - Education,A44280,
http://opendatacommunities.org/id/london-borough-council/sutton,London Borough of Sutton,21/10/2021,10004539,11.29, AMAZON.CO.UK ZP12T69V5,"SPLIT - AFRICA, AMAZING AFRICA: COUNTRY BY COUNTRY: 1 (100%)",Peoples Services,LAC - Education,A44280,
http://opendatacommunities.org/id/london-borough-council/sutton,London Borough of Sutton,21/10/2021,10004539,5.40, AMAZON.CO.UK 3A9TA3JJ5,"SPLIT - BLACK AND BRITISH: A SHORT, ESSENTIAL HISTORY (100%)",Peoples Services,LAC - Education,A44280,
http://opendatacommunities.org/id/london-borough-council/sutton,London Borough of Sutton,06/10/2021,10004539,7.45, AMAZON.CO.UK 5H4AP8T55,SPLIT - PAW PATROL: THE MOVIE: BIG GOLDEN BOOK (PAW PATROL) (65.12%),Peoples Services,LAC - Education,A44280,
http://opendatacommunities.org/id/london-borough-council/sutton,London Borough of Sutton,06/10/2021,10004539,3.99, AMAZON.CO.UK 5H4AP8T55,BALANCING ENTRY AMOUNT (34.88%),Peoples Services,LAC - Education,A44280,
http://opendatacommunities.org/id/london-borough-council/sutton,London Borough of Sutton,22/10/2021,10004539,5.40, AMAZON.CO.UK RK7LM8RC5,"SPLIT - BLACK AND BRITISH: A SHORT, ESSENTIAL HISTORY (100%)",Peoples Services,LAC - Education,A44280,
http://opendatacommunities.org/id/london-borough-council/sutton,London Borough of Sutton,22/10/2021,10004539,5.40, AMAZON.CO.UK HW8JV0545,"SPLIT - BLACK AND BRITISH: A SHORT, ESSENTIAL HISTORY (100%)",Peoples Services,LAC - Education,A44280,
http://opendatacommunities.org/id/london-borough-council/sutton,London Borough of Sutton,22/10/2021,10004539,5.40, AMAZON.CO.UK 470TV0815,"SPLIT - BLACK AND BRITISH: A SHORT, ESSENTIAL HISTORY (100%)",Peoples Services,LAC - Education,A44280,
http://opendatacommunities.org/id/london-borough-council/sutton,London Borough of Sutton,22/10/2021,10004539,5.40, AMAZON.CO.UK JU2IH1WK5,"SPLIT - BLACK AND BRITISH: A SHORT, ESSENTIAL HISTORY (100%)",Peoples Services,LAC - Education,A44280,
http://opendatacommunities.org/id/london-borough-council/sutton,London Borough of Sutton,21/10/2021,10004539,11.29, AMAZON.CO.UK KW40N1WQ5,"SPLIT - AFRICA, AMAZING AFRICA: COUNTRY BY COUNTRY: 1 (100%)",Peoples Services,LAC - Education,A44280,
http://opendatacommunities.org/id/london-borough-council/sutton,London Borough of Sutton,21/10/2021,10004539,11.29, AMAZON.CO.UK HV9IF2GP5,"SPLIT - AFRICA, AMAZING AFRICA: COUNTRY BY COUNTRY: 1 (100%)",Peoples Services,LAC - Education,A44280,
http://opendatacommunities.org/id/london-borough-council/sutton,London Borough of Sutton,21/10/2021,10004539,11.29, AMAZON.CO.UK HZ42T9E75,"SPLIT - AFRICA, AMAZING AFRICA: COUNTRY BY COUNTRY: 1 (100%)",Peoples Services,LAC - Education,A44280,
http://opendatacommunities.org/id/london-borough-council/sutton,London Borough of Sutton,06/10/2021,10004539,6.89, AMAZON.CO.UK FC80U9NC5,SPLIT - ORCHARD TOYS MATCH AND COUNT JIGSAW GAME (66.53%),Peoples Services,LAC - Education,A44280,
http://opendatacommunities.org/id/london-borough-council/sutton,London Borough of Sutton,06/10/2021,10004539,3.47, AMAZON.CO.UK FC80U9NC5,BALANCING ENTRY AMOUNT (33.47%),Peoples Services,LAC - Education,A44280,
http://opendatacommunities.org/id/london-borough-council/sutton,London Borough of Sutton,06/10/2021,10004539,7.89, AMAZON.CO.UK 6E1EO5P15,SPLIT - THE WICKED WIT OF WINSTON CHURCHILL (66.41%),Peoples Services,LAC - Education,A44280,
http://opendatacommunities.org/id/london-borough-council/sutton,London Borough of Sutton,06/10/2021,10004539,3.99, AMAZON.CO.UK 6E1EO5P15,BALANCING ENTRY AMOUNT (33.59%),Peoples Services,LAC - Education,A44280,
http://opendatacommunities.org/id/london-borough-council/sutton,London Borough of Sutton,23/10/2021,10004539,14.09, AMAZON.CO.UK 784QK2Y35,SPLIT - MY DOG ROMEO (100%),Peoples Services,LAC - Education,A44280,
http://opendatacommunities.org/id/london-borough-council/sutton,London Borough of Sutton,22/10/2021,10004539,13.46, AMAZON.CO.UK WA3T56GV5,SPLIT - MY DOG ROMEO (100%),Peoples Services,LAC - Education,A44280,
http://opendatacommunities.org/id/london-borough-council/sutton,London Borough of Sutton,24/10/2021,10004539,8.16, AMAZON.CO.UK 3D6IK5M45,"SPLIT - HANDWRITING WORKBOOK FOR KIDS: 3-IN-1 WRITING PRACTICE BOOK TO MASTER LETTERS, WORDS & SENTENCES (62.05%)",Peoples Services,LAC - Education,A44280,
http://opendatacommunities.org/id/london-borough-council/sutton,London Borough of Sutton,24/10/2021,10004539,4.99, AMAZON.CO.UK 3D6IK5M45,SPLIT - HANDWRITING TODAY: BK. 2 (HANDWRITING TODAY) (37.95%),Peoples Services,LAC - Education,A44280,
http://opendatacommunities.org/id/london-borough-council/sutton,London Borough of Sutton,21/10/2021,10004539,11.29, AMAZON.CO.UK OT2BC41B5,"SPLIT - AFRICA, AMAZING AFRICA: COUNTRY BY COUNTRY: 1 (100%)",Peoples Services,LAC - Education,A44280,
http://opendatacommunities.org/id/london-borough-council/sutton,London Borough of Sutton,21/10/2021,10004539,5.40, AMAZON.CO.UK 2229L0ZK5,"SPLIT - BLACK AND BRITISH: A SHORT, ESSENTIAL HISTORY (100%)",Peoples Services,LAC - Education,A44280,
http://opendatacommunities.org/id/london-borough-council/sutton,London Borough of Sutton,21/10/2021,10004539,11.29, AMAZON.CO.UK O45QV44J5,"SPLIT - AFRICA, AMAZING AFRICA: COUNTRY BY COUNTRY: 1 (100%)",Peoples Services,LAC - Education,A44280,
http://opendatacommunities.org/id/london-borough-council/sutton,London Borough of Sutton,21/10/2021,10004539,11.29, AMAZON.CO.UK 7L9F23QL5,"SPLIT - AFRICA, AMAZING AFRICA: COUNTRY BY COUNTRY: 1 (100%)",Peoples Services,LAC - Education,A44280,
http://opendatacommunities.org/id/london-borough-council/sutton,London Borough of Sutton,22/10/2021,10004539,5.40, AMAZON.CO.UK 2J3BQ72R5,"SPLIT - BLACK AND BRITISH: A SHORT, ESSENTIAL HISTORY (100%)",Peoples Services,LAC - Education,A44280,
http://opendatacommunities.org/id/london-borough-council/sutton,London Borough of Sutton,22/10/2021,10004539,5.40, AMAZON.CO.UK GW4BM4WU5,"SPLIT - BLACK AND BRITISH: A SHORT, ESSENTIAL HISTORY (100%)",Peoples Services,LAC - Education,A44280,
http://opendatacommunities.org/id/london-borough-council/sutton,London Borough of Sutton,21/10/2021,10004539,11.29, AMAZON.CO.UK 8Q4UK9W15,"SPLIT - AFRICA, AMAZING AFRICA: COUNTRY BY COUNTRY: 1 (100%)",Peoples Services,LAC - Education,A44280,
http://opendatacommunities.org/id/london-borough-council/sutton,London Borough of Sutton,21/10/2021,10004539,11.29, AMAZON.CO.UK YT9XK5F05,"SPLIT - AFRICA, AMAZING AFRICA: COUNTRY BY COUNTRY: 1 (100%)",Peoples Services,LAC - Education,A44280,
http://opendatacommunities.org/id/london-borough-council/sutton,London Borough of Sutton,18/10/2021,10004539,11.29, AMZNMKTPLACE,SPLIT - DRAW LIKE AN ARTIST: 100 BUILDINGS AND ARCHITECTURAL FORMS: STEP-BY-STEP REALISTIC LINE DRAWING - A SOURCEBOOK FOR ASPIRING ARTISTS AND DESIGNERS (6) (25.34%),Peoples Services,LAC - Education,A44280,
http://opendatacommunities.org/id/london-borough-council/sutton,London Borough of Sutton,07/10/2021,10004539,6.99, AMAZON.CO.UK TK4EF2885,SPLIT - MAX AND THE MAGIC WISH (63.66%),Peoples Services,LAC - Education,A44280,
http://opendatacommunities.org/id/london-borough-council/sutton,London Borough of Sutton,07/10/2021,10004539,3.99, AMAZON.CO.UK TK4EF2885,BALANCING ENTRY AMOUNT (36.34%),Peoples Services,LAC - Education,A44280,
http://opendatacommunities.org/id/london-borough-council/sutton,London Borough of Sutton,07/10/2021,10004539,5.64, AMAZON.CO.UK S47LO6UK5,SPLIT - RUBY'S WORRY: A BIG BRIGHT FEELINGS BOOK,Peoples Services,LAC - Education,A44280,
http://opendatacommunities.org/id/london-borough-council/sutton,London Borough of Sutton,20/10/2021,10004539,3.59, AMZNMKTPLACE,"SPLIT - KEEPING HOUSE: HINTS AND TIPS FOR A CLEAN, TIDY AND WELL-ORGANIZED HOME (58.32%)",Peoples Services,LAC - Education,A44280,
http://opendatacommunities.org/id/london-borough-council/sutton,London Borough of Sutton,20/10/2021,10004539,2.56, AMZNMKTPLACE,BALANCING ENTRY AMOUNT (41.68%),Peoples Services,LAC - Education,A44280,
http://opendatacommunities.org/id/london-borough-council/sutton,London Borough of Sutton,20/10/2021,10004539,7.79, AMAZON.CO.UK WJ4MI6165,"SPLIT - WRECK THIS JOURNAL: TO CREATE IS TO DESTROY, NOW WITH EVEN MORE WAYS TO WRECK! (100%)",Peoples Services,LAC - Education,A44280,
http://opendatacommunities.org/id/london-borough-council/sutton,London Borough of Sutton,20/10/2021,10004539,6.97, AMAZON.CO.UK IE0W88OX5,SPLIT - DAN VERSUS NATURE (100%),Peoples Services,LAC - Education,A44280,
http://opendatacommunities.org/id/london-borough-council/sutton,London Borough of Sutton,21/10/2021,10004539,11.29, AMAZON.CO.UK 6B7OP5LL5,"SPLIT - AFRICA, AMAZING AFRICA: COUNTRY BY COUNTRY: 1 (100%)",Peoples Services,LAC - Education,A44280,
http://opendatacommunities.org/id/london-borough-council/sutton,London Borough of Sutton,21/10/2021,10004539,11.29, AMAZON.CO.UK P69K116F5,"SPLIT - AFRICA, AMAZING AFRICA: COUNTRY BY COUNTRY: 1 (100%)",Peoples Services,LAC - Education,A44280,
http://opendatacommunities.org/id/london-borough-council/sutton,London Borough of Sutton,21/10/2021,10004539,5.40, AMAZON.CO.UK ET1CK2885,"SPLIT - BLACK AND BRITISH: A SHORT, ESSENTIAL HISTORY (100%)",Peoples Services,LAC - Education,A44280,
http://opendatacommunities.org/id/london-borough-council/sutton,London Borough of Sutton,21/10/2021,10004539,11.29, AMAZON.CO.UK YD3KE0IT5,"SPLIT - AFRICA, AMAZING AFRICA: COUNTRY BY COUNTRY: 1 (100%)",Peoples Services,LAC - Education,A44280,
http://opendatacommunities.org/id/london-borough-council/sutton,London Borough of Sutton,21/10/2021,10004539,11.29, AMAZON.CO.UK GN2W92NM5,"SPLIT - AFRICA, AMAZING AFRICA: COUNTRY BY COUNTRY: 1 (100%)",Peoples Services,LAC - Education,A44280,
http://opendatacommunities.org/id/london-borough-council/sutton,London Borough of Sutton,21/10/2021,10004539,11.29, AMAZON.CO.UK KL1Y30SB5,"SPLIT - AFRICA, AMAZING AFRICA: COUNTRY BY COUNTRY: 1 (100%)",Peoples Services,LAC - Education,A44280,
http://opendatacommunities.org/id/london-borough-council/sutton,London Borough of Sutton,21/10/2021,10004539,11.29, AMAZON.CO.UK 713N50Z65,"SPLIT - AFRICA, AMAZING AFRICA: COUNTRY BY COUNTRY: 1 (100%)",Peoples Services,LAC - Education,A44280,
http://opendatacommunities.org/id/london-borough-council/sutton,London Borough of Sutton,22/10/2021,10004539,9.36, AMAZON.CO.UK 1W9OI5OC5,SPLIT - BUILDING YOUR OWN GAMING PC HANDBOOK: 2021 GAMING PC BUILD GUIDE: GET YOUR RIG READY FOR THE NEXT GEN & B&#X435;&#X455;T G&#X430;M&#X456;NG PC BU&#X45 (60.98%),Peoples Services,LAC - Education,A44280,
http://opendatacommunities.org/id/london-borough-council/sutton,London Borough of Sutton,22/10/2021,10004539,5.99, AMAZON.CO.UK 1W9OI5OC5,SPLIT - RICH DAD POOR DAD: WHAT THE RICH TEACH THEIR KIDS ABOUT MONEY THAT THE POOR AND MIDDLE CLASS DO NOT! (39.02%),Peoples Services,LAC - Education,A44280,
http://opendatacommunities.org/id/london-borough-council/sutton,London Borough of Sutton,21/10/2021,10004539,5.40, AMAZON.CO.UK 4235217S5,"SPLIT - BLACK AND BRITISH: A SHORT, ESSENTIAL HISTORY (100%)",Peoples Services,LAC - Education,A44280,
http://opendatacommunities.org/id/london-borough-council/sutton,London Borough of Sutton,24/10/2021,10004539,5.40, AMAZON.CO.UK 4N5M30465,"SPLIT - BLACK AND BRITISH: A SHORT, ESSENTIAL HISTORY (100%)",Peoples Services,LAC - Education,A44280,
http://opendatacommunities.org/id/london-borough-council/sutton,London Borough of Sutton,21/10/2021,10004539,11.29, AMAZON.CO.UK I848U64X5,"SPLIT - AFRICA, AMAZING AFRICA: COUNTRY BY COUNTRY: 1 (100%)",Peoples Services,LAC - Education,A44280,
http://opendatacommunities.org/id/london-borough-council/sutton,London Borough of Sutton,20/10/2021,10004539,11.38, AMZNMKTPLACE,SPLIT - GOOSEBUMPS HORRORLAND SERIES 10 BOOKS COLLECTION SET BY R.L.STINE (CLASSIC COVERS SET 2) (100%),Peoples Services,LAC - Education,A44280,
http://opendatacommunities.org/id/london-borough-council/sutton,London Borough of Sutton,20/10/2021,10004539,6.99, AMAZON.CO.UK BY2YO71E5,SPLIT - ALL ABOUT MATHS (BIG QUESTIONS) (100%),Peoples Services,LAC - Education,A44280,
http://opendatacommunities.org/id/london-borough-council/sutton,London Borough of Sutton,22/10/2021,10004539,5.40, AMAZON.CO.UK FC5PY8AQ5,"SPLIT - BLACK AND BRITISH: A SHORT, ESSENTIAL HISTORY (100%)",Peoples Services,LAC - Education,A44280,
http://opendatacommunities.org/id/london-borough-council/sutton,London Borough of Sutton,22/10/2021,10004539,5.40, AMAZON.CO.UK OZ8JA5IY5,"SPLIT - BLACK AND BRITISH: A SHORT, ESSENTIAL HISTORY (100%)",Peoples Services,LAC - Education,A44280,
http://opendatacommunities.org/id/london-borough-council/sutton,London Borough of Sutton,22/10/2021,10004539,5.40, AMAZON.CO.UK WK8Z03UJ5,"SPLIT - BLACK AND BRITISH: A SHORT, ESSENTIAL HISTORY (100%)",Peoples Services,LAC - Education,A44280,
http://opendatacommunities.org/id/london-borough-council/sutton,London Borough of Sutton,23/10/2021,10004539,13.46, AMAZON.CO.UK IW5HF35L5,SPLIT - MY DOG ROMEO (100%),Peoples Services,LAC - Education,A44280,
http://opendatacommunities.org/id/london-borough-council/sutton,London Borough of Sutton,23/10/2021,10004539,13.46, AMAZON.CO.UK LD77G5IR5,SPLIT - MY DOG ROMEO (100%),Peoples Services,LAC - Education,A44280,
http://opendatacommunities.org/id/london-borough-council/sutton,London Borough of Sutton,20/10/2021,10004539,17.05, AMAZON.CO.UK J02401MC5,SPLIT - CHAOS WALKING BOXED SET (100%),Peoples Services,LAC - Education,A44280,
http://opendatacommunities.org/id/london-borough-council/sutton,London Borough of Sutton,24/10/2021,10004539,5.40, AMAZON.CO.UK 1V36M8VB5,"SPLIT - BLACK AND BRITISH: A SHORT, ESSENTIAL HISTORY (100%)",Peoples Services,LAC - Education,A44280,
http://opendatacommunities.org/id/london-borough-council/sutton,London Borough of Sutton,24/10/2021,10004539,10.80, AMAZON.CO.UK QH5QY7IH5,"SPLIT - BLACK AND BRITISH: A SHORT, ESSENTIAL HISTORY (100%)",Peoples Services,LAC - Education,A44280,
http://opendatacommunities.org/id/london-borough-council/sutton,London Borough of Sutton,24/10/2021,10004539,5.40, AMAZON.CO.UK 5N03Z5ZM5,"SPLIT - BLACK AND BRITISH: A SHORT, ESSENTIAL HISTORY (100%)",Peoples Services,LAC - Education,A44280,
http://opendatacommunities.org/id/london-borough-council/sutton,London Borough of Sutton,24/10/2021,10004539,5.40, AMAZON.CO.UK 8X7PY5M15,"SPLIT - BLACK AND BRITISH: A SHORT, ESSENTIAL HISTORY (100%)",Peoples Services,LAC - Education,A44280,
http://opendatacommunities.org/id/london-borough-council/sutton,London Borough of Sutton,21/10/2021,10004539,5.40, AMAZON.CO.UK 4D6DA1QZ5,"SPLIT - BLACK AND BRITISH: A SHORT, ESSENTIAL HISTORY (100%)",Peoples Services,LAC - Education,A44280,
http://opendatacommunities.org/id/london-borough-council/sutton,London Borough of Sutton,22/10/2021,10004539,5.40, AMAZON.CO.UK NO4YO6A25,"SPLIT - BLACK AND BRITISH: A SHORT, ESSENTIAL HISTORY (100%)",Peoples Services,LAC - Education,A44280,
http://opendatacommunities.org/id/london-borough-council/sutton,London Borough of Sutton,20/10/2021,10004539,9.83, AMZNMKTPLACE,SPLIT - THE PERIODIC TABLE POSTERS - SET OF 2 | SCIENCE POSTERS | GLOSS PAPER MEASURING 850MM X 594MM (A1) | SCIENCE CHARTS FOR THE CLASSROOM | EDUCATION CHAR (82.75%),Peoples Services,LAC - Education,A44280,
http://opendatacommunities.org/id/london-borough-council/sutton,London Borough of Sutton,20/10/2021,10004539,2.05, AMZNMKTPLACE,BALANCING ENTRY AMOUNT (17.25%),Peoples Services,LAC - Education,A44280,
http://opendatacommunities.org/id/london-borough-council/sutton,London Borough of Sutton,21/10/2021,10004539,14.36, AMZNMKTPLACE,SPLIT - MY DOG ROMEO (100%),Peoples Services,LAC - Education,A44280,
http://opendatacommunities.org/id/london-borough-council/sutton,London Borough of Sutton,21/10/2021,10004539,14.36, AMZNMKTPLACE,SPLIT - MY DOG ROMEO (100%),Peoples Services,LAC - Education,A44280,
http://opendatacommunities.org/id/london-borough-council/sutton,London Borough of Sutton,20/10/2021,10004539,6.55, AMAZON.CO.UK Q61JN83Z5,SPLIT - I KNOW YOU DID IT (100%),Peoples Services,LAC - Education,A44280,
http://opendatacommunities.org/id/london-borough-council/sutton,London Borough of Sutton,20/10/2021,10004539,4.00, AMAZON.CO.UK 0G2DL70I5,SPLIT - DIARY OF A WIMPY KID: THE GETAWAY (BOOK 12) (100%),Peoples Services,LAC - Education,A44280,
http://opendatacommunities.org/id/london-borough-council/sutton,London Borough of Sutton,19/10/2021,10004539,8.19, AMAZON.CO.UK 3T7CZ2H55,SPLIT - HOW I BECAME A DOG CALLED MIDNIGHT: THE BRAND NEW MAGICAL ADVENTURE (100%),Peoples Services,LAC - Education,A44280,
http://opendatacommunities.org/id/london-borough-council/sutton,London Borough of Sutton,19/10/2021,10004539,28.95, AMZNMKTPLACE,"SPLIT - COOPER INFINITE EXECUTIVE KEYBOARD CASE FOR 9, 9.7, 10, 10.1, 10.2, 10.5"" TABLETS | LEATHER FOLIO COVER & BLUETOOTH WIRELESS KEYBOARD WITH HOTKEYS (100%)",Peoples Services,LAC - Education,A44280,
http://opendatacommunities.org/id/london-borough-council/sutton,London Borough of Sutton,18/10/2021,10004539,20.94, AMZNMKTPLACE,SPLIT - LONGMAN PHOTO DICTIONARY (46.94%),Peoples Services,LAC - Education,A44280,
http://opendatacommunities.org/id/london-borough-council/sutton,London Borough of Sutton,18/10/2021,10004539,10.82, AMZNMKTPLACE,"SPLIT - 35PCS SKETCH PENCILS WITH SKETCHBOOK, PROFESSIONAL DRAWING SET FOR KIDS, TENNS AND ADULTS, COMPLETE ARTIST KITS INCLUDES PENCILS, ERASERS, PASTELS, A (27.73%)",Peoples Services,LAC - Education,A44280,
http://opendatacommunities.org/id/london-borough-council/sutton,London Borough of Sutton,06/10/2021,10004539,25.82, AMZNMKTPLACE,SPLIT - ROALD DAHL COLLECTION 16 FANTASTIC STORIES: PAKIET (81.15%),Peoples Services,LAC - Education,A44280,
http://opendatacommunities.org/id/london-borough-council/sutton,London Borough of Sutton,21/10/2021,10004539,14.36, AMZNMKTPLACE,SPLIT - MY DOG ROMEO (100%),Peoples Services,LAC - Education,A44280,
http://opendatacommunities.org/id/london-borough-council/sutton,London Borough of Sutton,21/10/2021,10004539,11.29, AMAZON.CO.UK ES7UH2JB5,"SPLIT - AFRICA, AMAZING AFRICA: COUNTRY BY COUNTRY: 1 (100%)",Peoples Services,LAC - Education,A44280,
http://opendatacommunities.org/id/london-borough-council/sutton,London Borough of Sutton,22/10/2021,10004539,5.40, AMAZON.CO.UK XO6K29TJ5,"SPLIT - BLACK AND BRITISH: A SHORT, ESSENTIAL HISTORY (100%)",Peoples Services,LAC - Education,A44280,
http://opendatacommunities.org/id/london-borough-council/sutton,London Borough of Sutton,22/10/2021,10004539,5.40, AMAZON.CO.UK 5C5KR6CW5,"SPLIT - BLACK AND BRITISH: A SHORT, ESSENTIAL HISTORY (100%)",Peoples Services,LAC - Education,A44280,
http://opendatacommunities.org/id/london-borough-council/sutton,London Borough of Sutton,22/10/2021,10004539,5.40, AMAZON.CO.UK DQ7PM9ZV5,"SPLIT - BLACK AND BRITISH: A SHORT, ESSENTIAL HISTORY (100%)",Peoples Services,LAC - Education,A44280,
http://opendatacommunities.org/id/london-borough-council/sutton,London Borough of Sutton,22/10/2021,10004539,11.29, AMAZON.CO.UK ZS7WJ2HE5,"SPLIT - AFRICA, AMAZING AFRICA: COUNTRY BY COUNTRY: 1 (100%)",Peoples Services,LAC - Education,A44280,
http://opendatacommunities.org/id/london-borough-council/sutton,London Borough of Sutton,22/10/2021,10004539,11.29, AMAZON.CO.UK VF9GX1FI5,"SPLIT - AFRICA, AMAZING AFRICA: COUNTRY BY COUNTRY: 1 (100%)",Peoples Services,LAC - Education,A44280,
http://opendatacommunities.org/id/london-borough-council/sutton,London Borough of Sutton,22/10/2021,10004539,5.40, AMAZON.CO.UK 4319D9575,"SPLIT - BLACK AND BRITISH: A SHORT, ESSENTIAL HISTORY (100%)",Peoples Services,LAC - Education,A44280,
http://opendatacommunities.org/id/london-borough-council/sutton,London Borough of Sutton,22/10/2021,10004539,5.40, AMAZON.CO.UK KV9991EU5,"SPLIT - BLACK AND BRITISH: A SHORT, ESSENTIAL HISTORY (100%)",Peoples Services,LAC - Education,A44280,
http://opendatacommunities.org/id/london-borough-council/sutton,London Borough of Sutton,22/10/2021,10004539,5.40, AMAZON.CO.UK JE1AE9YV5,"SPLIT - BLACK AND BRITISH: A SHORT, ESSENTIAL HISTORY (100%)",Peoples Services,LAC - Education,A44280,
http://opendatacommunities.org/id/london-borough-council/sutton,London Borough of Sutton,22/10/2021,10004539,5.40, AMAZON.CO.UK 203986OU5,"SPLIT - BLACK AND BRITISH: A SHORT, ESSENTIAL HISTORY (100%)",Peoples Services,LAC - Education,A44280,
http://opendatacommunities.org/id/london-borough-council/sutton,London Borough of Sutton,22/10/2021,10004539,5.40, AMAZON.CO.UK 0M5R704A5,"SPLIT - BLACK AND BRITISH: A SHORT, ESSENTIAL HISTORY (100%)",Peoples Services,LAC - Education,A44280,
http://opendatacommunities.org/id/london-borough-council/sutton,London Borough of Sutton,22/10/2021,10004539,5.40, AMAZON.CO.UK RO28U1NL5,"SPLIT - BLACK AND BRITISH: A SHORT, ESSENTIAL HISTORY (100%)",Peoples Services,LAC - Education,A44280,
http://opendatacommunities.org/id/london-borough-council/sutton,London Borough of Sutton,22/10/2021,10004539,5.40, AMAZON.CO.UK 574G81WA5,"SPLIT - BLACK AND BRITISH: A SHORT, ESSENTIAL HISTORY (100%)",Peoples Services,LAC - Education,A44280,
http://opendatacommunities.org/id/london-borough-council/sutton,London Borough of Sutton,22/10/2021,10004539,5.40, AMAZON.CO.UK I242C4TK5,"SPLIT - BLACK AND BRITISH: A SHORT, ESSENTIAL HISTORY (100%)",Peoples Services,LAC - Education,A44280,
http://opendatacommunities.org/id/london-borough-council/sutton,London Borough of Sutton,22/10/2021,10004539,5.40, AMAZON.CO.UK KR3C31E85,"SPLIT - BLACK AND BRITISH: A SHORT, ESSENTIAL HISTORY (100%)",Peoples Services,LAC - Education,A44280,
http://opendatacommunities.org/id/london-borough-council/sutton,London Borough of Sutton,22/10/2021,10004539,5.40, AMAZON.CO.UK YA4ZU1QX5,"SPLIT - BLACK AND BRITISH: A SHORT, ESSENTIAL HISTORY (100%)",Peoples Services,LAC - Education,A44280,
http://opendatacommunities.org/id/london-borough-council/sutton,London Borough of Sutton,21/10/2021,10004539,5.40, AMAZON.CO.UK AL5ZN3CI5,"SPLIT - BLACK AND BRITISH: A SHORT, ESSENTIAL HISTORY (100%)",Peoples Services,LAC - Education,A44280,
http://opendatacommunities.org/id/london-borough-council/sutton,London Borough of Sutton,21/10/2021,10004539,5.40, AMAZON.CO.UK 2Z8VQ1TK4,"SPLIT - BLACK AND BRITISH: A SHORT, ESSENTIAL HISTORY (100%)",Peoples Services,LAC - Education,A44280,
http://opendatacommunities.org/id/london-borough-council/sutton,London Borough of Sutton,21/10/2021,10004539,11.29, AMAZON.CO.UK J262Y3JP5,"SPLIT - AFRICA, AMAZING AFRICA: COUNTRY BY COUNTRY: 1 (100%)",Peoples Services,LAC - Education,A44280,
http://opendatacommunities.org/id/london-borough-council/sutton,London Borough of Sutton,21/10/2021,10004539,11.29, AMAZON.CO.UK UM4JE8655,"SPLIT - AFRICA, AMAZING AFRICA: COUNTRY BY COUNTRY: 1 (100%)",Peoples Services,LAC - Education,A44280,
http://opendatacommunities.org/id/london-borough-council/sutton,London Borough of Sutton,21/10/2021,10004539,11.29, AMAZON.CO.UK ZV9TD9LY5,"SPLIT - AFRICA, AMAZING AFRICA: COUNTRY BY COUNTRY: 1 (100%)",Peoples Services,LAC - Education,A44280,
http://opendatacommunities.org/id/london-borough-council/sutton,London Borough of Sutton,21/10/2021,10004539,5.40, AMAZON.CO.UK 5C7AK8ET5,"SPLIT - BLACK AND BRITISH: A SHORT, ESSENTIAL HISTORY (100%)",Peoples Services,LAC - Education,A44280,
http://opendatacommunities.org/id/london-borough-council/sutton,London Borough of Sutton,21/10/2021,10004539,5.40, AMAZON.CO.UK RN5DT27S5,"SPLIT - BLACK AND BRITISH: A SHORT, ESSENTIAL HISTORY (100%)",Peoples Services,LAC - Education,A44280,
http://opendatacommunities.org/id/london-borough-council/sutton,London Borough of Sutton,21/10/2021,10004539,5.40, AMAZON.CO.UK 5J5MU8Q65,"SPLIT - BLACK AND BRITISH: A SHORT, ESSENTIAL HISTORY (100%)",Peoples Services,LAC - Education,A44280,
http://opendatacommunities.org/id/london-borough-council/sutton,London Borough of Sutton,21/10/2021,10004539,5.40, AMAZON.CO.UK 7H7CE21V5,"SPLIT - BLACK AND BRITISH: A SHORT, ESSENTIAL HISTORY (100%)",Peoples Services,LAC - Education,A44280,
http://opendatacommunities.org/id/london-borough-council/sutton,London Borough of Sutton,21/10/2021,10004539,5.40, AMAZON.CO.UK RA5147Y35,"SPLIT - BLACK AND BRITISH: A SHORT, ESSENTIAL HISTORY (100%)",Peoples Services,LAC - Education,A44280,
http://opendatacommunities.org/id/london-borough-council/sutton,London Borough of Sutton,21/10/2021,10004539,5.40, AMAZON.CO.UK XE6PC81X5,"SPLIT - BLACK AND BRITISH: A SHORT, ESSENTIAL HISTORY (100%)",Peoples Services,LAC - Education,A44280,
http://opendatacommunities.org/id/london-borough-council/sutton,London Borough of Sutton,21/10/2021,10004539,5.40, AMAZON.CO.UK ID4RE5FS5,"SPLIT - BLACK AND BRITISH: A SHORT, ESSENTIAL HISTORY (100%)",Peoples Services,LAC - Education,A44280,
http://opendatacommunities.org/id/london-borough-council/sutton,London Borough of Sutton,21/10/2021,10004539,5.40, AMAZON.CO.UK O247H0U55,"SPLIT - BLACK AND BRITISH: A SHORT, ESSENTIAL HISTORY (100%)",Peoples Services,LAC - Education,A44280,
http://opendatacommunities.org/id/london-borough-council/sutton,London Borough of Sutton,25/10/2021,10004539,6.49, AMAZON.CO.UK QB5WJ8GJ5,SPLIT - DIARY OF A WIMPY KID: BIG SHOT (BOOK 16) (100%),Peoples Services,LAC - Education,A44280,
http://opendatacommunities.org/id/london-borough-council/sutton,London Borough of Sutton,24/10/2021,10004539,11.29, AMAZON.CO.UK YM4Z42CQ5,"SPLIT - AFRICA, AMAZING AFRICA: COUNTRY BY COUNTRY: 1 (100%)",Peoples Services,LAC - Education,A44280,
http://opendatacommunities.org/id/london-borough-council/sutton,London Borough of Sutton,24/10/2021,10004539,5.40, AMAZON.CO.UK QS69Q3W25,"SPLIT - BLACK AND BRITISH: A SHORT, ESSENTIAL HISTORY (100%)",Peoples Services,LAC - Education,A44280,
http://opendatacommunities.org/id/london-borough-council/sutton,London Borough of Sutton,24/10/2021,10004539,5.40, AMAZON.CO.UK P93B844I5,"SPLIT - BLACK AND BRITISH: A SHORT, ESSENTIAL HISTORY (100%)",Peoples Services,LAC - Education,A44280,
http://opendatacommunities.org/id/london-borough-council/sutton,London Borough of Sutton,21/10/2021,10004539,5.40, AMAZON.CO.UK ID0TB1EA5,"SPLIT - BLACK AND BRITISH: A SHORT, ESSENTIAL HISTORY (100%)",Peoples Services,LAC - Education,A44280,
http://opendatacommunities.org/id/london-borough-council/sutton,London Borough of Sutton,21/10/2021,10004539,5.40, AMAZON.CO.UK V85C46C95,"SPLIT - BLACK AND BRITISH: A SHORT, ESSENTIAL HISTORY (100%)",Peoples Services,LAC - Education,A44280,
http://opendatacommunities.org/id/london-borough-council/sutton,London Borough of Sutton,21/10/2021,10004539,5.40, AMAZON.CO.UK F52PW7JT5,"SPLIT - BLACK AND BRITISH: A SHORT, ESSENTIAL HISTORY (100%)",Peoples Services,LAC - Education,A44280,
http://opendatacommunities.org/id/london-borough-council/sutton,London Borough of Sutton,21/10/2021,10004539,5.40, AMAZON.CO.UK AX15F9FX5,"SPLIT - BLACK AND BRITISH: A SHORT, ESSENTIAL HISTORY (100%)",Peoples Services,LAC - Education,A44280,
http://opendatacommunities.org/id/london-borough-council/sutton,London Borough of Sutton,21/10/2021,10004539,11.29, AMAZON.CO.UK 299E54J95,"SPLIT - AFRICA, AMAZING AFRICA: COUNTRY BY COUNTRY: 1 (100%)",Peoples Services,LAC - Education,A44280,
http://opendatacommunities.org/id/london-borough-council/sutton,London Borough of Sutton,21/10/2021,10004539,11.29, AMAZON.CO.UK MP19Z7225,"SPLIT - AFRICA, AMAZING AFRICA: COUNTRY BY COUNTRY: 1 (100%)",Peoples Services,LAC - Education,A44280,
http://opendatacommunities.org/id/london-borough-council/sutton,London Borough of Sutton,21/10/2021,10004539,11.29, AMAZON.CO.UK QL3SM3A35,"SPLIT - AFRICA, AMAZING AFRICA: COUNTRY BY COUNTRY: 1 (100%)",Peoples Services,LAC - Education,A44280,
http://opendatacommunities.org/id/london-borough-council/sutton,London Borough of Sutton,21/10/2021,10004539,11.29, AMAZON.CO.UK XJ69Y91D5,"SPLIT - AFRICA, AMAZING AFRICA: COUNTRY BY COUNTRY: 1 (100%)",Peoples Services,LAC - Education,A44280,
http://opendatacommunities.org/id/london-borough-council/sutton,London Borough of Sutton,21/10/2021,10004539,11.29, AMAZON.CO.UK UU4YA55L5,"SPLIT - AFRICA, AMAZING AFRICA: COUNTRY BY COUNTRY: 1 (100%)",Peoples Services,LAC - Education,A44280,
http://opendatacommunities.org/id/london-borough-council/sutton,London Borough of Sutton,21/10/2021,10004539,11.29, AMAZON.CO.UK LS4S35QX5,"SPLIT - AFRICA, AMAZING AFRICA: COUNTRY BY COUNTRY: 1 (100%)",Peoples Services,LAC - Education,A44280,
http://opendatacommunities.org/id/london-borough-council/sutton,London Borough of Sutton,21/10/2021,10004539,4.99, AMAZON.CO.UK X35L716Z5,SPLIT - HANDWRITING TODAY: BK. 2 (HANDWRITING TODAY) (37.95%),Peoples Services,LAC - Education,A44280,
http://opendatacommunities.org/id/london-borough-council/sutton,London Borough of Sutton,21/10/2021,10004539,11.29, AMAZON.CO.UK 499C47OL5,"SPLIT - AFRICA, AMAZING AFRICA: COUNTRY BY COUNTRY: 1 (100%)",Peoples Services,LAC - Education,A44280,
http://opendatacommunities.org/id/london-borough-council/sutton,London Borough of Sutton,21/10/2021,10004539,11.29, AMAZON.CO.UK E05I07NV5,"SPLIT - AFRICA, AMAZING AFRICA: COUNTRY BY COUNTRY: 1 (100%)",Peoples Services,LAC - Education,A44280,
http://opendatacommunities.org/id/london-borough-council/sutton,London Borough of Sutton,21/10/2021,10004539,11.29, AMAZON.CO.UK YQ9K90HT5,"SPLIT - AFRICA, AMAZING AFRICA: COUNTRY BY COUNTRY: 1 (100%)",Peoples Services,LAC - Education,A44280,
http://opendatacommunities.org/id/london-borough-council/sutton,London Borough of Sutton,21/10/2021,10004539,11.29, AMAZON.CO.UK VL61V1EN5,"SPLIT - AFRICA, AMAZING AFRICA: COUNTRY BY COUNTRY: 1 (100%)",Peoples Services,LAC - Education,A44280,
http://opendatacommunities.org/id/london-borough-council/sutton,London Borough of Sutton,21/10/2021,10004539,11.29, AMAZON.CO.UK 4Q47Y1DR5,"SPLIT - AFRICA, AMAZING AFRICA: COUNTRY BY COUNTRY: 1 (100%)",Peoples Services,LAC - Education,A44280,
http://opendatacommunities.org/id/london-borough-council/sutton,London Borough of Sutton,21/10/2021,10004539,11.29, AMAZON.CO.UK RF6474CR5,"SPLIT - AFRICA, AMAZING AFRICA: COUNTRY BY COUNTRY: 1 (100%)",Peoples Services,LAC - Education,A44280,
http://opendatacommunities.org/id/london-borough-council/sutton,London Borough of Sutton,21/10/2021,10004539,11.29, AMAZON.CO.UK MM5TP36P5,"SPLIT - AFRICA, AMAZING AFRICA: COUNTRY BY COUNTRY: 1 (100%)",Peoples Services,LAC - Education,A44280,
http://opendatacommunities.org/id/london-borough-council/sutton,London Borough of Sutton,21/10/2021,10004539,11.29, AMAZON.CO.UK RY2OJ6935,"SPLIT - AFRICA, AMAZING AFRICA: COUNTRY BY COUNTRY: 1 (100%)",Peoples Services,LAC - Education,A44280,
http://opendatacommunities.org/id/london-borough-council/sutton,London Borough of Sutton,21/10/2021,10004539,11.29, AMAZON.CO.UK 6F16S3YN5,"SPLIT - AFRICA, AMAZING AFRICA: COUNTRY BY COUNTRY: 1 (100%)",Peoples Services,LAC - Education,A44280,
http://opendatacommunities.org/id/london-borough-council/sutton,London Borough of Sutton,21/10/2021,10004539,11.29, AMAZON.CO.UK 4H7PG8UX5,"SPLIT - AFRICA, AMAZING AFRICA: COUNTRY BY COUNTRY: 1 (100%)",Peoples Services,LAC - Education,A44280,
http://opendatacommunities.org/id/london-borough-council/sutton,London Borough of Sutton,21/10/2021,10004539,8.16, AMAZON.CO.UK X35L716Z5,"SPLIT - HANDWRITING WORKBOOK FOR KIDS: 3-IN-1 WRITING PRACTICE BOOK TO MASTER LETTERS, WORDS & SENTENCES (62.05%)",Peoples Services,LAC - Education,A44280,
